Body Name,Vendor Number,Vendor Name,Amount,Cost Centre,Service Label,BV Code,Period
Slough Borough Council,806064,24 X 7 Buckinghamshire Ltd,"1,380.08",F123,Schools,Supplies and Services,Feb-22
Slough Borough Council,3963,50:50 Sync Cic,"2,640.00",F449,DSG - High Needs Block,Supplies and Services,Feb-22
Slough Borough Council,1055,A J Chapman,"62,475.08",F123,Schools,Supplies and Services,Feb-22
Slough Borough Council,1055,A J Chapman,"1,039.50",F123,Schools,Supplies and Services,Feb-22
Slough Borough Council,1055,A J Chapman,"4,180.00",F123,Schools,Supplies and Services,Feb-22
Slough Borough Council,1055,A J Chapman,515.00,F123,Schools,Supplies and Services,Feb-22
Slough Borough Council,536,Ability Housing Association,"1,272.30",M42E,Adult Social Care Operations,Supplies and Services,Feb-22
Slough Borough Council,536,Ability Housing Association,"3,039.65",M42E,Adult Social Care Operations,Supplies and Services,Feb-22
Slough Borough Council,536,Ability Housing Association,"2,698.23",M42E,Adult Social Care Operations,Supplies and Services,Feb-22
Slough Borough Council,536,Ability Housing Association,"2,675.13",M42E,Adult Social Care Operations,Supplies and Services,Feb-22
Slough Borough Council,536,Ability Housing Association,"3,076.80",M42E,Adult Social Care Operations,Supplies and Services,Feb-22
Slough Borough Council,536,Ability Housing Association,"1,429.95",M42E,Adult Social Care Operations,Supplies and Services,Feb-22
Slough Borough Council,536,Ability Housing Association,"2,761.89",M42E,Adult Social Care Operations,Supplies and Services,Feb-22
Slough Borough Council,536,Ability Housing Association,"3,580.54",M42E,Adult Social Care Operations,Supplies and Services,Feb-22
Slough Borough Council,536,Ability Housing Association,"2,630.94",M42E,Adult Social Care Operations,Supplies and Services,Feb-22
Slough Borough Council,536,Ability Housing Association,"2,731.36",M42E,Adult Social Care Operations,Supplies and Services,Feb-22
Slough Borough Council,536,Ability Housing Association,"2,691.19",M42E,Adult Social Care Operations,Supplies and Services,Feb-22
Slough Borough Council,536,Ability Housing Association,"2,530.52",M42E,Adult Social Care Operations,Supplies and Services,Feb-22
Slough Borough Council,536,Ability Housing Association,"1,446.01",M42E,Adult Social Care Operations,Supplies and Services,Feb-22
Slough Borough Council,536,Ability Housing Association,"1,894.89",M42E,Adult Social Care Operations,Supplies and Services,Feb-22
Slough Borough Council,536,Ability Housing Association,"2,437.14",M42E,Adult Social Care Operations,Supplies and Services,Feb-22
Slough Borough Council,536,Ability Housing Association,"1,855.72",M42E,Adult Social Care Operations,Supplies and Services,Feb-22
Slough Borough Council,536,Ability Housing Association,"2,798.65",M42E,Adult Social Care Operations,Supplies and Services,Feb-22
Slough Borough Council,536,Ability Housing Association,"2,477.29",M42E,Adult Social Care Operations,Supplies and Services,Feb-22
Slough Borough Council,536,Ability Housing Association,"1,815.55",M44E,Adult Social Care Operations,Supplies and Services,Feb-22
Slough Borough Council,536,Ability Housing Association,"2,221.24",M44E,Adult Social Care Operations,Supplies and Services,Feb-22
Slough Borough Council,536,Ability Housing Association,"2,301.58",M44E,Adult Social Care Operations,Supplies and Services,Feb-22
Slough Borough Council,536,Ability Housing Association,"1,883.84",M44E,Adult Social Care Operations,Supplies and Services,Feb-22
Slough Borough Council,807554,Acorn Care & Education Ltd,"5,735.71",M26E,Adult Social Care Operations,Supplies and Services,Feb-22
Slough Borough Council,807554,Acorn Care & Education Ltd,"4,671.43",F462,DSG - High Needs Block,Supplies and Services,Feb-22
Slough Borough Council,807554,Acorn Care & Education Ltd,"4,671.43",F462,DSG - High Needs Block,Supplies and Services,Feb-22
Slough Borough Council,807554,Acorn Care & Education Ltd,"4,827.14",F462,DSG - High Needs Block,Supplies and Services,Feb-22
Slough Borough Council,807554,Acorn Care & Education Ltd,"4,827.14",F462,DSG - High Needs Block,Supplies and Services,Feb-22
Slough Borough Council,807554,Acorn Care & Education Ltd,"4,827.14",F462,DSG - High Needs Block,Supplies and Services,Feb-22
Slough Borough Council,807554,Acorn Care & Education Ltd,"4,671.43",F462,DSG - High Needs Block,Supplies and Services,Feb-22
Slough Borough Council,807554,Acorn Care & Education Ltd,"4,827.14",F462,DSG - High Needs Block,Supplies and Services,Feb-22
Slough Borough Council,807917,Adapted Vehicle Hire,946.74,M50A,Major Infrastructure Projects,Transport,Feb-22
Slough Borough Council,807917,Adapted Vehicle Hire,946.74,M50A,Major Infrastructure Projects,Transport,Feb-22
Slough Borough Council,807917,Adapted Vehicle Hire,916.20,M50A,Major Infrastructure Projects,Transport,Feb-22
Slough Borough Council,807917,Adapted Vehicle Hire,946.74,M50A,Major Infrastructure Projects,Transport,Feb-22
Slough Borough Council,807917,Adapted Vehicle Hire,916.20,M50A,Major Infrastructure Projects,Transport,Feb-22
Slough Borough Council,807917,Adapted Vehicle Hire,946.74,M50A,Major Infrastructure Projects,Transport,Feb-22
Slough Borough Council,2855,Advance Housing & Support Ltd,"1,609.52",M42F,Adult Social Care Operations,Supplies and Services,Feb-22
Slough Borough Council,2855,Advance Housing & Support Ltd,"1,097.40",M42F,Adult Social Care Operations,Supplies and Services,Feb-22
Slough Borough Council,2855,Advance Housing & Support Ltd,731.60,M42F,Adult Social Care Operations,Supplies and Services,Feb-22
Slough Borough Council,2855,Advance Housing & Support Ltd,"1,170.56",M42F,Adult Social Care Operations,Supplies and Services,Feb-22
Slough Borough Council,2855,Advance Housing & Support Ltd,"1,609.52",M42F,Adult Social Care Operations,Supplies and Services,Feb-22
Slough Borough Council,2855,Advance Housing & Support Ltd,"1,097.40",M42F,Adult Social Care Operations,Supplies and Services,Feb-22
Slough Borough Council,2855,Advance Housing & Support Ltd,731.60,M42F,Adult Social Care Operations,Supplies and Services,Feb-22
Slough Borough Council,2855,Advance Housing & Support Ltd,"1,170.56",M42F,Adult Social Care Operations,Supplies and Services,Feb-22
Slough Borough Council,2135,Adventure Learning Childcare Limited,"8,338.77",F909,DSG - Early Years,Supplies and Services,Feb-22
Slough Borough Council,805178,AFM Transport Limited,"13,999.40",D880,Direct Service Organisation (DSO),Supplies and Services,Feb-22
Slough Borough Council,805178,AFM Transport Limited,"4,506.24",D880,Direct Service Organisation (DSO),Supplies and Services,Feb-22
Slough Borough Council,805178,AFM Transport Limited,"1,125.36",D880,Direct Service Organisation (DSO),Supplies and Services,Feb-22
Slough Borough Council,805178,AFM Transport Limited,"18,744.80",D880,Direct Service Organisation (DSO),Supplies and Services,Feb-22
Slough Borough Council,805178,AFM Transport Limited,"1,204.48",D880,Direct Service Organisation (DSO),Supplies and Services,Feb-22
Slough Borough Council,805178,AFM Transport Limited,602.24,D880,Direct Service Organisation (DSO),Supplies and Services,Feb-22
Slough Borough Council,805178,AFM Transport Limited,"13,074.24",D880,Direct Service Organisation (DSO),Supplies and Services,Feb-22
Slough Borough Council,805178,AFM Transport Limited,"3,912.00",D880,Direct Service Organisation (DSO),Supplies and Services,Feb-22
Slough Borough Council,805178,AFM Transport Limited,"1,517.13",D880,Direct Service Organisation (DSO),Supplies and Services,Feb-22
Slough Borough Council,2301,Aik Saath,"2,428.26",F382,Children & Families,Supplies and Services,Feb-22
Slough Borough Council,2197,Altwood Housing Ltd,"1,380.00",H205,Housing (People) Services,Supplies and Services,Feb-22
Slough Borough Council,2197,Altwood Housing Ltd,930.00,H205,Housing (People) Services,Supplies and Services,Feb-22
Slough Borough Council,2197,Altwood Housing Ltd,930.00,H205,Housing (People) Services,Supplies and Services,Feb-22
Slough Borough Council,2197,Altwood Housing Ltd,"2,325.00",H205,Housing (People) Services,Supplies and Services,Feb-22
Slough Borough Council,2197,Altwood Housing Ltd,"1,705.00",H205,Housing (People) Services,Supplies and Services,Feb-22
Slough Borough Council,2197,Altwood Housing Ltd,"1,705.00",H205,Housing (People) Services,Supplies and Services,Feb-22
Slough Borough Council,2197,Altwood Housing Ltd,"1,240.00",H205,Housing (People) Services,Supplies and Services,Feb-22
Slough Borough Council,2197,Altwood Housing Ltd,"1,705.00",H205,Housing (People) Services,Supplies and Services,Feb-22
Slough Borough Council,2197,Altwood Housing Ltd,930.00,H205,Housing (People) Services,Supplies and Services,Feb-22
Slough Borough Council,2197,Altwood Housing Ltd,744.00,H205,Housing (People) Services,Supplies and Services,Feb-22
Slough Borough Council,2197,Altwood Housing Ltd,"1,705.00",H205,Housing (People) Services,Supplies and Services,Feb-22
Slough Borough Council,2197,Altwood Housing Ltd,930.00,H205,Housing (People) Services,Supplies and Services,Feb-22
Slough Borough Council,2197,Altwood Housing Ltd,930.00,H205,Housing (People) Services,Supplies and Services,Feb-22
Slough Borough Council,2197,Altwood Housing Ltd,930.00,H205,Housing (People) Services,Supplies and Services,Feb-22
Slough Borough Council,2197,Altwood Housing Ltd,930.00,H205,Housing (People) Services,Supplies and Services,Feb-22
Slough Borough Council,2197,Altwood Housing Ltd,930.00,H205,Housing (People) Services,Supplies and Services,Feb-22
Slough Borough Council,86,Altwood Properties Ltd,"43,772.35",H205,Housing (People) Services,Premises,Feb-22
Slough Borough Council,807515,Always Growing Together Community Interest Company Limited,"8,943.17",F909,DSG - Early Years,Supplies and Services,Feb-22
Slough Borough Council,808191,Ambrose Adrian Healthcare Ltd,651.47,B298,Finance,Supplies and Services,Feb-22
Slough Borough Council,808191,Ambrose Adrian Healthcare Ltd,"1,325.78",B324,Finance,Supplies and Services,Feb-22
Slough Borough Council,808191,Ambrose Adrian Healthcare Ltd,"1,070.00",M44E,Adult Social Care Operations,Supplies and Services,Feb-22
Slough Borough Council,808191,Ambrose Adrian Healthcare Ltd,950.00,M44E,Adult Social Care Operations,Supplies and Services,Feb-22
Slough Borough Council,808191,Ambrose Adrian Healthcare Ltd,950.00,M44E,Adult Social Care Operations,Supplies and Services,Feb-22
Slough Borough Council,808191,Ambrose Adrian Healthcare Ltd,"3,800.00",M44E,Adult Social Care Operations,Supplies and Services,Feb-22
Slough Borough Council,808191,Ambrose Adrian Healthcare Ltd,950.00,M44E,Adult Social Care Operations,Supplies and Services,Feb-22
Slough Borough Council,808191,Ambrose Adrian Healthcare Ltd,"3,800.00",M44E,Adult Social Care Operations,Supplies and Services,Feb-22
Slough Borough Council,3137,Applegarth Care Home Ltd,"2,398.72",B298,Finance,Supplies and Services,Feb-22
Slough Borough Council,3137,Applegarth Care Home Ltd,"3,811.63",B324,Finance,Supplies and Services,Feb-22
Slough Borough Council,3137,Applegarth Care Home Ltd,"3,200.00",M25C,Adult Social Care Operations,Supplies and Services,Feb-22
Slough Borough Council,3137,Applegarth Care Home Ltd,"3,400.00",M25C,Adult Social Care Operations,Supplies and Services,Feb-22
Slough Borough Council,3137,Applegarth Care Home Ltd,"3,500.00",M27C,Adult Social Care Operations,Supplies and Services,Feb-22
Slough Borough Council,805234,Aquam Water Services Limited,"3,019.55",D880,Direct Service Organisation (DSO),Supplies and Services,Feb-22
Slough Borough Council,3350,Arbour Vale School,"443,555.87",E509,DSG - High Needs Block,Supplies and Services,Feb-22
Slough Borough Council,3350,Arbour Vale School,"3,570.00",B297,Finance,Government Grants,Feb-22
Slough Borough Council,420,Ashburn Estate Agents,"111,900.00",H205,Housing (People) Services,Premises,Feb-22
Slough Borough Council,420,Ashburn Estate Agents,"111,180.00",H205,Housing (People) Services,Premises,Feb-22
Slough Borough Council,3666,Assisted Living South West,"4,816.04",M26E,Adult Social Care Operations,Supplies and Services,Feb-22
Slough Borough Council,803499,Association of Directors of Public Health,"2,850.00",A01P,Public Health,Supplies and Services,Feb-22
Slough Borough Council,804324,Astoria Healthcare,"3,800.00",M27F,Adult Social Care Operations,Supplies and Services,Feb-22
Slough Borough Council,804324,Astoria Healthcare,"4,207.14",M27F,Adult Social Care Operations,Supplies and Services,Feb-22
Slough Borough Council,807686,Baxters Homecare,"2,817.29",B324,Finance,Supplies and Services,Feb-22
Slough Borough Council,3370,Baylis Court School,"4,583.34",E709,DSG - Schools,Supplies and Services,Feb-22
Slough Borough Council,1681,Bcq,"1,692.00",B240,Governance,Supplies and Services,Feb-22
Slough Borough Council,1681,Bcq,"1,050.00",C322,Communities and Leisure,Supplies and Services,Feb-22
Slough Borough Council,1681,Bcq,673.00,B246,Governance,Supplies and Services,Feb-22
Slough Borough Council,3208,Be Happy Pre School,"8,022.68",F909,DSG - Early Years,Supplies and Services,Feb-22
Slough Borough Council,3208,Be Happy Pre School,"3,108.34",F909,DSG - Early Years,Supplies and Services,Feb-22
Slough Borough Council,1818,Bear Buses,995.54,D512,Major Infrastructure Projects,Supplies and Services,Feb-22
Slough Borough Council,805539,Beech Haven Ltd,"3,277.14",M27C,Adult Social Care Operations,Supplies and Services,Feb-22
Slough Borough Council,805539,Beech Haven Ltd,"2,960.00",M27C,Adult Social Care Operations,Supplies and Services,Feb-22
Slough Borough Council,609,Beechwood Secondary School,"8,583.33",E519,DSG - Schools,Supplies and Services,Feb-22
Slough Borough Council,804588,BEN Motor & Allied Trades Bev.Fnd,"6,400.00",M15D,Adult Social Care Operations,Supplies and Services,Feb-22
Slough Borough Council,804588,BEN Motor & Allied Trades Bev.Fnd,"6,400.00",M15D,Adult Social Care Operations,Supplies and Services,Feb-22
Slough Borough Council,804588,BEN Motor & Allied Trades Bev.Fnd,"6,400.00",M15D,Adult Social Care Operations,Supplies and Services,Feb-22
Slough Borough Council,804588,BEN Motor & Allied Trades Bev.Fnd,"5,600.00",M27C,Adult Social Care Operations,Supplies and Services,Feb-22
Slough Borough Council,611,Berkshire College Of Agriculture,"79,343.42",F558,DSG - High Needs Block,Supplies and Services,Feb-22
Slough Borough Council,612,Berkshire Healthcare Nhs Foundation Trust,"3,333.33",F520,Inclusion,Supplies and Services,Feb-22
Slough Borough Council,612,Berkshire Healthcare Nhs Foundation Trust,"3,333.33",F520,Inclusion,Supplies and Services,Feb-22
Slough Borough Council,612,Berkshire Healthcare Nhs Foundation Trust,"3,333.33",F520,Inclusion,Supplies and Services,Feb-22
Slough Borough Council,612,Berkshire Healthcare Nhs Foundation Trust,"3,333.33",F520,Inclusion,Supplies and Services,Feb-22
Slough Borough Council,612,Berkshire Healthcare Nhs Foundation Trust,"3,617.00",A01D,Adult Social Care Operations,Agency Staff,Feb-22
Slough Borough Council,612,Berkshire Healthcare Nhs Foundation Trust,"2,604.08",A01D,Adult Social Care Operations,Agency Staff,Feb-22
Slough Borough Council,612,Berkshire Healthcare Nhs Foundation Trust,"2,689.58",A07M,Mental Health Services,Agency Staff,Feb-22
Slough Borough Council,612,Berkshire Healthcare Nhs Foundation Trust,"3,801.17",A07M,Mental Health Services,Agency Staff,Feb-22
Slough Borough Council,612,Berkshire Healthcare Nhs Foundation Trust,684.25,A07M,Mental Health Services,Agency Staff,Feb-22
Slough Borough Council,612,Berkshire Healthcare Nhs Foundation Trust,"3,066.08",A07M,Mental Health Services,Agency Staff,Feb-22
Slough Borough Council,612,Berkshire Healthcare Nhs Foundation Trust,806.92,A07M,Mental Health Services,Agency Staff,Feb-22
Slough Borough Council,612,Berkshire Healthcare Nhs Foundation Trust,"4,303.33",A07M,Mental Health Services,Agency Staff,Feb-22
Slough Borough Council,612,Berkshire Healthcare Nhs Foundation Trust,"4,303.33",A07M,Mental Health Services,Agency Staff,Feb-22
Slough Borough Council,612,Berkshire Healthcare Nhs Foundation Trust,"4,303.33",A07M,Mental Health Services,Agency Staff,Feb-22
Slough Borough Council,612,Berkshire Healthcare Nhs Foundation Trust,"5,379.25",A07M,Mental Health Services,Agency Staff,Feb-22
Slough Borough Council,612,Berkshire Healthcare Nhs Foundation Trust,"31,156.00",A07M,Mental Health Services,Agency Staff,Feb-22
Slough Borough Council,612,Berkshire Healthcare Nhs Foundation Trust,684.25,A07M,Mental Health Services,Agency Staff,Feb-22
Slough Borough Council,612,Berkshire Healthcare Nhs Foundation Trust,"3,894.50",A07M,Mental Health Services,Agency Staff,Feb-22
Slough Borough Council,612,Berkshire Healthcare Nhs Foundation Trust,"4,303.33",A07M,Mental Health Services,Agency Staff,Feb-22
Slough Borough Council,612,Berkshire Healthcare Nhs Foundation Trust,"5,379.25",A07M,Mental Health Services,Agency Staff,Feb-22
Slough Borough Council,612,Berkshire Healthcare Nhs Foundation Trust,"3,894.50",A07M,Mental Health Services,Agency Staff,Feb-22
Slough Borough Council,612,Berkshire Healthcare Nhs Foundation Trust,"4,303.33",A07M,Mental Health Services,Agency Staff,Feb-22
Slough Borough Council,612,Berkshire Healthcare Nhs Foundation Trust,"5,379.25",A07M,Mental Health Services,Agency Staff,Feb-22
Slough Borough Council,612,Berkshire Healthcare Nhs Foundation Trust,608.17,A07M,Mental Health Services,Agency Staff,Feb-22
Slough Borough Council,612,Berkshire Healthcare Nhs Foundation Trust,"7,015.25",A07M,Mental Health Services,Agency Staff,Feb-22
Slough Borough Council,612,Berkshire Healthcare Nhs Foundation Trust,"6,582.00",A07R,Adult Social Care Operations,Supplies and Services,Feb-22
Slough Borough Council,612,Berkshire Healthcare Nhs Foundation Trust,"10,416.67",F417,DSG - High Needs Block,Supplies and Services,Feb-22
Slough Borough Council,808148,BEST CHOICE CARE LTD,721.96,A07R,Adult Social Care Operations,Supplies and Services,Feb-22
Slough Borough Council,808148,BEST CHOICE CARE LTD,630.00,A07R,Adult Social Care Operations,Supplies and Services,Feb-22
Slough Borough Council,808148,BEST CHOICE CARE LTD,525.20,A07R,Adult Social Care Operations,Supplies and Services,Feb-22
Slough Borough Council,808148,BEST CHOICE CARE LTD,"2,100.26",A07R,Adult Social Care Operations,Supplies and Services,Feb-22
Slough Borough Council,808148,BEST CHOICE CARE LTD,866.39,A07R,Adult Social Care Operations,Supplies and Services,Feb-22
Slough Borough Council,808148,BEST CHOICE CARE LTD,888.22,M44C,Adult Social Care Operations,Supplies and Services,Feb-22
Slough Borough Council,808148,BEST CHOICE CARE LTD,"1,128.92",M44C,Adult Social Care Operations,Supplies and Services,Feb-22
Slough Borough Council,808148,BEST CHOICE CARE LTD,857.64,M44C,Adult Social Care Operations,Supplies and Services,Feb-22
Slough Borough Council,808148,BEST CHOICE CARE LTD,735.00,M44C,Adult Social Care Operations,Supplies and Services,Feb-22
Slough Borough Council,808148,BEST CHOICE CARE LTD,612.64,M44C,Adult Social Care Operations,Supplies and Services,Feb-22
Slough Borough Council,808148,BEST CHOICE CARE LTD,752.78,M45C,Adult Social Care Operations,Supplies and Services,Feb-22
Slough Borough Council,806987,Better Life Care Ltd,733.93,M44E,Adult Social Care Operations,Supplies and Services,Feb-22
Slough Borough Council,803828,Blue Willow Day Nursery Ltd,"18,199.55",F909,DSG - Early Years,Supplies and Services,Feb-22
Slough Borough Council,808213,Bm-active And mentoring ltd,"2,200.00",F449,DSG - High Needs Block,Supplies and Services,Feb-22
Slough Borough Council,808213,Bm-active And mentoring ltd,"3,400.00",F449,DSG - High Needs Block,Supplies and Services,Feb-22
Slough Borough Council,806917,Boulters Lock,"4,871.43",M27F,Adult Social Care Operations,Supplies and Services,Feb-22
Slough Borough Council,805060,BPS Dorking Ltd t/a BPS Chartered Surveyors,"1,600.00",D224,Planning and Transport,Supplies and Services,Feb-22
Slough Borough Council,805060,BPS Dorking Ltd t/a BPS Chartered Surveyors,"5,520.00",D224,Planning and Transport,Supplies and Services,Feb-22
Slough Borough Council,2856,Brain Injury Rehabilitation Trust,"5,052.28",M26E,Adult Social Care Operations,Supplies and Services,Feb-22
Slough Borough Council,2856,Brain Injury Rehabilitation Trust,"6,757.64",M27C,Adult Social Care Operations,Supplies and Services,Feb-22
Slough Borough Council,805179,Braywood Tree Surgery Ltd,"9,399.46",P220,Capital,Capital Charges,Feb-22
Slough Borough Council,504,Britwell Baptist Pre School,"5,179.48",F909,DSG - Early Years,Supplies and Services,Feb-22
Slough Borough Council,741,Bunnies Pre-School,"5,080.00",F909,DSG - Early Years,Supplies and Services,Feb-22
Slough Borough Council,803553,BUPA CARE HOME (CFH CARE),"3,172.00",M25D,Adult Social Care Operations,Supplies and Services,Feb-22
Slough Borough Council,804448,Bupa Care Homes (ANS) Ltd,"5,821.18",M15D,Adult Social Care Operations,Supplies and Services,Feb-22
Slough Borough Council,629,C.H.O.I.C.E Limited,"5,800.04",M26E,Adult Social Care Operations,Supplies and Services,Feb-22
Slough Borough Council,629,C.H.O.I.C.E Limited,"7,892.84",M26E,Adult Social Care Operations,Supplies and Services,Feb-22
Slough Borough Council,629,C.H.O.I.C.E Limited,"9,715.84",M26E,Adult Social Care Operations,Supplies and Services,Feb-22
Slough Borough Council,629,C.H.O.I.C.E Limited,"9,933.36",M26E,Adult Social Care Operations,Supplies and Services,Feb-22
Slough Borough Council,629,C.H.O.I.C.E Limited,"8,475.48",M26E,Adult Social Care Operations,Supplies and Services,Feb-22
Slough Borough Council,629,C.H.O.I.C.E Limited,"9,418.16",M26E,Adult Social Care Operations,Supplies and Services,Feb-22
Slough Borough Council,629,C.H.O.I.C.E Limited,"9,715.84",M26E,Adult Social Care Operations,Supplies and Services,Feb-22
Slough Borough Council,629,C.H.O.I.C.E Limited,"10,344.80",M26E,Adult Social Care Operations,Supplies and Services,Feb-22
Slough Borough Council,629,C.H.O.I.C.E Limited,"1,107.14",M42E,Adult Social Care Operations,Supplies and Services,Feb-22
Slough Borough Council,629,C.H.O.I.C.E Limited,"5,677.03",M42E,Adult Social Care Operations,Supplies and Services,Feb-22
Slough Borough Council,629,C.H.O.I.C.E Limited,"1,071.43",M42E,Adult Social Care Operations,Supplies and Services,Feb-22
Slough Borough Council,629,C.H.O.I.C.E Limited,"5,677.03",M42E,Adult Social Care Operations,Supplies and Services,Feb-22
Slough Borough Council,629,C.H.O.I.C.E Limited,"6,100.18",M42E,Adult Social Care Operations,Supplies and Services,Feb-22
Slough Borough Council,629,C.H.O.I.C.E Limited,"1,107.14",M42E,Adult Social Care Operations,Supplies and Services,Feb-22
Slough Borough Council,629,C.H.O.I.C.E Limited,"6,235.03",M42E,Adult Social Care Operations,Supplies and Services,Feb-22
Slough Borough Council,629,C.H.O.I.C.E Limited,"6,145.35",M42E,Adult Social Care Operations,Supplies and Services,Feb-22
Slough Borough Council,629,C.H.O.I.C.E Limited,"5,474.61",M42E,Adult Social Care Operations,Supplies and Services,Feb-22
Slough Borough Council,629,C.H.O.I.C.E Limited,"4,431.49",M44D,Adult Social Care Operations,Supplies and Services,Feb-22
Slough Borough Council,629,C.H.O.I.C.E Limited,"4,431.49",M44D,Adult Social Care Operations,Supplies and Services,Feb-22
Slough Borough Council,629,C.H.O.I.C.E Limited,"2,581.90",M44F,Adult Social Care Operations,Supplies and Services,Feb-22
Slough Borough Council,629,C.H.O.I.C.E Limited,"2,608.07",M44F,Adult Social Care Operations,Supplies and Services,Feb-22
Slough Borough Council,629,C.H.O.I.C.E Limited,"2,608.07",M44F,Adult Social Care Operations,Supplies and Services,Feb-22
Slough Borough Council,805625,Cadent Gas Ltd,"1,458.00",J607,HDC Housing Development,Supplies and Services,Feb-22
Slough Borough Council,805625,Cadent Gas Ltd,828.00,J607,HDC Housing Development,Supplies and Services,Feb-22
Slough Borough Council,808007,Cameron & Cooper Limited (The Beech House School),"1,368.38",F462,DSG - High Needs Block,Supplies and Services,Feb-22
Slough Borough Council,623,Canon (Uk) Ltd,"9,425.33",K059,Customer and Communications,Supplies and Services,Feb-22
Slough Borough Council,737,Capita Business Services Ltd,"21,495.00",B282,Digital and Strategic IT,Supplies and Services,Feb-22
Slough Borough Council,804861,Care Management Group Ltd,"14,744.00",M26E,Adult Social Care Operations,Supplies and Services,Feb-22
Slough Borough Council,804861,Care Management Group Ltd,"14,744.00",M26E,Adult Social Care Operations,Supplies and Services,Feb-22
Slough Borough Council,804861,Care Management Group Ltd,"14,088.53",M26E,Adult Social Care Operations,Supplies and Services,Feb-22
Slough Borough Council,804861,Care Management Group Ltd,"14,088.53",M26E,Adult Social Care Operations,Supplies and Services,Feb-22
Slough Borough Council,804861,Care Management Group Ltd,"14,744.00",M26E,Adult Social Care Operations,Supplies and Services,Feb-22
Slough Borough Council,804861,Care Management Group Ltd,"14,088.53",M26E,Adult Social Care Operations,Supplies and Services,Feb-22
Slough Borough Council,804861,Care Management Group Ltd,"1,926.74",M42F,Adult Social Care Operations,Supplies and Services,Feb-22
Slough Borough Council,804861,Care Management Group Ltd,"3,087.85",M44F,Adult Social Care Operations,Supplies and Services,Feb-22
Slough Borough Council,805621,Care Staff Services,"5,537.53",B298,Finance,Supplies and Services,Feb-22
Slough Borough Council,805621,Care Staff Services,"8,286.15",B324,Finance,Supplies and Services,Feb-22
Slough Borough Council,805621,Care Staff Services,"1,960.00",A07R,Adult Social Care Operations,Supplies and Services,Feb-22
Slough Borough Council,805621,Care Staff Services,"1,242.50",A07R,Adult Social Care Operations,Supplies and Services,Feb-22
Slough Borough Council,805621,Care Staff Services,"1,165.50",A07R,Adult Social Care Operations,Supplies and Services,Feb-22
Slough Borough Council,805621,Care Staff Services,735.00,A07R,Adult Social Care Operations,Supplies and Services,Feb-22
Slough Borough Council,805621,Care Staff Services,"2,038.75",A07R,Adult Social Care Operations,Supplies and Services,Feb-22
Slough Borough Council,805621,Care Staff Services,"1,618.75",A07R,Adult Social Care Operations,Supplies and Services,Feb-22
Slough Borough Council,805621,Care Staff Services,721.88,A07R,Adult Social Care Operations,Supplies and Services,Feb-22
Slough Borough Council,805621,Care Staff Services,743.75,A07R,Adult Social Care Operations,Supplies and Services,Feb-22
Slough Borough Council,805621,Care Staff Services,630.00,A07R,Adult Social Care Operations,Supplies and Services,Feb-22
Slough Borough Council,805621,Care Staff Services,"1,365.00",A07R,Adult Social Care Operations,Supplies and Services,Feb-22
Slough Borough Council,805621,Care Staff Services,"1,715.00",A07R,Adult Social Care Operations,Supplies and Services,Feb-22
Slough Borough Council,805621,Care Staff Services,"1,813.00",M44C,Adult Social Care Operations,Supplies and Services,Feb-22
Slough Borough Council,805621,Care Staff Services,980.00,M44C,Adult Social Care Operations,Supplies and Services,Feb-22
Slough Borough Council,805621,Care Staff Services,638.25,M44C,Adult Social Care Operations,Supplies and Services,Feb-22
Slough Borough Council,805621,Care Staff Services,"2,146.00",M44C,Adult Social Care Operations,Supplies and Services,Feb-22
Slough Borough Council,805621,Care Staff Services,"1,165.50",M44C,Adult Social Care Operations,Supplies and Services,Feb-22
Slough Borough Council,805621,Care Staff Services,682.50,M44C,Adult Social Care Operations,Supplies and Services,Feb-22
Slough Borough Council,805621,Care Staff Services,"2,146.00",M44C,Adult Social Care Operations,Supplies and Services,Feb-22
Slough Borough Council,805621,Care Staff Services,814.00,M44C,Adult Social Care Operations,Supplies and Services,Feb-22
Slough Borough Council,805621,Care Staff Services,518.00,M44C,Adult Social Care Operations,Supplies and Services,Feb-22
Slough Borough Council,805621,Care Staff Services,857.50,M44C,Adult Social Care Operations,Supplies and Services,Feb-22
Slough Borough Council,805621,Care Staff Services,656.25,M44C,Adult Social Care Operations,Supplies and Services,Feb-22
Slough Borough Council,805621,Care Staff Services,518.00,M44C,Adult Social Care Operations,Supplies and Services,Feb-22
Slough Borough Council,805621,Care Staff Services,"1,102.50",M44C,Adult Social Care Operations,Supplies and Services,Feb-22
Slough Borough Council,805621,Care Staff Services,550.38,M44C,Adult Social Care Operations,Supplies and Services,Feb-22
Slough Borough Council,805621,Care Staff Services,857.50,M44C,Adult Social Care Operations,Supplies and Services,Feb-22
Slough Borough Council,805621,Care Staff Services,507.50,M44C,Adult Social Care Operations,Supplies and Services,Feb-22
Slough Borough Council,805621,Care Staff Services,"1,147.00",M44C,Adult Social Care Operations,Supplies and Services,Feb-22
Slough Borough Council,805621,Care Staff Services,"1,202.50",M44C,Adult Social Care Operations,Supplies and Services,Feb-22
Slough Borough Council,805621,Care Staff Services,"2,205.00",M44C,Adult Social Care Operations,Supplies and Services,Feb-22
Slough Borough Council,805621,Care Staff Services,"1,165.50",M44C,Adult Social Care Operations,Supplies and Services,Feb-22
Slough Borough Council,805621,Care Staff Services,721.50,M44C,Adult Social Care Operations,Supplies and Services,Feb-22
Slough Borough Council,805621,Care Staff Services,"1,890.00",M44C,Adult Social Care Operations,Supplies and Services,Feb-22
Slough Borough Council,805621,Care Staff Services,"2,664.00",M44C,Adult Social Care Operations,Supplies and Services,Feb-22
Slough Borough Council,805621,Care Staff Services,"1,165.50",M44C,Adult Social Care Operations,Supplies and Services,Feb-22
Slough Borough Council,805621,Care Staff Services,906.50,M44C,Adult Social Care Operations,Supplies and Services,Feb-22
Slough Borough Council,805621,Care Staff Services,"2,072.00",M44C,Adult Social Care Operations,Supplies and Services,Feb-22
Slough Borough Council,805621,Care Staff Services,"1,470.00",M44C,Adult Social Care Operations,Supplies and Services,Feb-22
Slough Borough Council,805621,Care Staff Services,906.50,M44C,Adult Social Care Operations,Supplies and Services,Feb-22
Slough Borough Council,805621,Care Staff Services,"1,942.50",M44C,Adult Social Care Operations,Supplies and Services,Feb-22
Slough Borough Council,805621,Care Staff Services,603.75,M44C,Adult Social Care Operations,Supplies and Services,Feb-22
Slough Borough Council,805621,Care Staff Services,864.88,M44C,Adult Social Care Operations,Supplies and Services,Feb-22
Slough Borough Council,805621,Care Staff Services,"2,205.00",M44C,Adult Social Care Operations,Supplies and Services,Feb-22
Slough Borough Council,805621,Care Staff Services,925.00,M44C,Adult Social Care Operations,Supplies and Services,Feb-22
Slough Borough Council,805621,Care Staff Services,"1,295.00",M44C,Adult Social Care Operations,Supplies and Services,Feb-22
Slough Borough Council,805621,Care Staff Services,805.00,M44C,Adult Social Care Operations,Supplies and Services,Feb-22
Slough Borough Council,805621,Care Staff Services,"1,406.00",M44C,Adult Social Care Operations,Supplies and Services,Feb-22
Slough Borough Council,805621,Care Staff Services,906.50,M44C,Adult Social Care Operations,Supplies and Services,Feb-22
Slough Borough Council,805621,Care Staff Services,647.50,M44C,Adult Social Care Operations,Supplies and Services,Feb-22
Slough Borough Council,805621,Care Staff Services,"2,331.00",M44C,Adult Social Care Operations,Supplies and Services,Feb-22
Slough Borough Council,805621,Care Staff Services,647.50,M44C,Adult Social Care Operations,Supplies and Services,Feb-22
Slough Borough Council,805621,Care Staff Services,"2,331.00",M44C,Adult Social Care Operations,Supplies and Services,Feb-22
Slough Borough Council,805621,Care Staff Services,980.00,M44C,Adult Social Care Operations,Supplies and Services,Feb-22
Slough Borough Council,805621,Care Staff Services,647.50,M44C,Adult Social Care Operations,Supplies and Services,Feb-22
Slough Borough Council,805621,Care Staff Services,957.38,M44C,Adult Social Care Operations,Supplies and Services,Feb-22
Slough Borough Council,805621,Care Staff Services,906.50,M44C,Adult Social Care Operations,Supplies and Services,Feb-22
Slough Borough Council,805621,Care Staff Services,832.50,M44D,Adult Social Care Operations,Supplies and Services,Feb-22
Slough Borough Council,805621,Care Staff Services,612.50,M44D,Adult Social Care Operations,Supplies and Services,Feb-22
Slough Borough Council,805621,Care Staff Services,"1,102.50",M44D,Adult Social Care Operations,Supplies and Services,Feb-22
Slough Borough Council,805621,Care Staff Services,"2,331.00",M44D,Adult Social Care Operations,Supplies and Services,Feb-22
Slough Borough Council,805621,Care Staff Services,518.00,M44D,Adult Social Care Operations,Supplies and Services,Feb-22
Slough Borough Council,805621,Care Staff Services,"1,785.00",M44D,Adult Social Care Operations,Supplies and Services,Feb-22
Slough Borough Council,805621,Care Staff Services,"1,165.50",M44D,Adult Social Care Operations,Supplies and Services,Feb-22
Slough Borough Council,805621,Care Staff Services,629.00,M44D,Adult Social Care Operations,Supplies and Services,Feb-22
Slough Borough Council,805621,Care Staff Services,601.25,M44D,Adult Social Care Operations,Supplies and Services,Feb-22
Slough Borough Council,805621,Care Staff Services,"1,239.50",M44D,Adult Social Care Operations,Supplies and Services,Feb-22
Slough Borough Council,805621,Care Staff Services,"1,592.50",M44D,Adult Social Care Operations,Supplies and Services,Feb-22
Slough Borough Council,805621,Care Staff Services,703.00,M44F,Adult Social Care Operations,Supplies and Services,Feb-22
Slough Borough Council,805621,Care Staff Services,999.00,M44F,Adult Social Care Operations,Supplies and Services,Feb-22
Slough Borough Council,805621,Care Staff Services,980.00,M44F,Adult Social Care Operations,Supplies and Services,Feb-22
Slough Borough Council,805621,Care Staff Services,666.00,M44F,Adult Social Care Operations,Supplies and Services,Feb-22
Slough Borough Council,805621,Care Staff Services,"1,382.88",M44F,Adult Social Care Operations,Supplies and Services,Feb-22
Slough Borough Council,805621,Care Staff Services,"1,387.50",M44F,Adult Social Care Operations,Supplies and Services,Feb-22
Slough Borough Council,805621,Care Staff Services,712.25,M44F,Adult Social Care Operations,Supplies and Services,Feb-22
Slough Borough Council,805621,Care Staff Services,"2,590.00",M44F,Adult Social Care Operations,Supplies and Services,Feb-22
Slough Borough Council,805621,Care Staff Services,857.50,M45C,Adult Social Care Operations,Supplies and Services,Feb-22
Slough Borough Council,805621,Care Staff Services,"1,960.00",M45C,Adult Social Care Operations,Supplies and Services,Feb-22
Slough Borough Council,805621,Care Staff Services,"3,431.75",M48C,Adult Social Care Operations,Supplies and Services,Feb-22
Slough Borough Council,805621,Care Staff Services,"3,700.00",M48C,Adult Social Care Operations,Supplies and Services,Feb-22
Slough Borough Council,805621,Care Staff Services,"1,225.00",M48C,Adult Social Care Operations,Supplies and Services,Feb-22
Slough Borough Council,805621,Care Staff Services,592.00,M85F,Adult Social Care Operations,Supplies and Services,Feb-22
Slough Borough Council,808149,Care Staff Services Support,"5,414.34",M44F,Adult Social Care Operations,Supplies and Services,Feb-22
Slough Borough Council,1162,Care Uk Community Partnership Ltd,"2,827.20",M15D,Adult Social Care Operations,Supplies and Services,Feb-22
Slough Borough Council,1162,Care Uk Community Partnership Ltd,"2,553.60",M15D,Adult Social Care Operations,Supplies and Services,Feb-22
Slough Borough Council,1162,Care Uk Community Partnership Ltd,"5,200.00",M17C,Adult Social Care Operations,Supplies and Services,Feb-22
Slough Borough Council,1162,Care Uk Community Partnership Ltd,"-9,862.40",M27C,Adult Social Care Operations,Supplies and Services,Feb-22
Slough Borough Council,1162,Care Uk Community Partnership Ltd,"1,822.40",M27C,Adult Social Care Operations,Supplies and Services,Feb-22
Slough Borough Council,1910,Carousel Buses Ltd,"7,648.66",D512,Major Infrastructure Projects,Supplies and Services,Feb-22
Slough Borough Council,1910,Carousel Buses Ltd,"2,029.19",D512,Major Infrastructure Projects,Supplies and Services,Feb-22
Slough Borough Council,804413,Castle Water,503.25,B180,Building Management,Premises,Feb-22
Slough Borough Council,804413,Castle Water,"1,888.14",B180,Building Management,Premises,Feb-22
Slough Borough Council,804413,Castle Water,522.73,D900,Direct Service Organisation (DSO),Premises,Feb-22
Slough Borough Council,418,Castleview School,"29,423.38",E239,DSG - Schools,Supplies and Services,Feb-22
Slough Borough Council,803560,Centennial Property Limited T/A Rent Connect,"28,502.00",H205,Housing (People) Services,Premises,Feb-22
Slough Borough Council,803560,Centennial Property Limited T/A Rent Connect,"27,600.00",H205,Housing (People) Services,Premises,Feb-22
Slough Borough Council,805619,Centennial Property Limited T/A The Housing Network,"28,800.00",H205,Housing (People) Services,Premises,Feb-22
Slough Borough Council,3609,Centurion Healthcare Ltd,"5,447.96",M26E,Adult Social Care Operations,Supplies and Services,Feb-22
Slough Borough Council,2892,Chalfont Lodge,"5,400.00",M15D,Adult Social Care Operations,Supplies and Services,Feb-22
Slough Borough Council,2892,Chalfont Lodge,"3,000.00",M15D,Adult Social Care Operations,Supplies and Services,Feb-22
Slough Borough Council,2892,Chalfont Lodge,"8,000.00",M15F,Adult Social Care Operations,Supplies and Services,Feb-22
Slough Borough Council,2892,Chalfont Lodge,"5,400.00",M26E,Adult Social Care Operations,Supplies and Services,Feb-22
Slough Borough Council,2608,Chandos Lodge Nursing Home,"3,600.00",M18C,Adult Social Care Operations,Supplies and Services,Feb-22
Slough Borough Council,1877,Chelsie Innes,"2,206.75",C322,Communities and Leisure,Supplies and Services,Feb-22
Slough Borough Council,1877,Chelsie Innes,"1,941.00",C322,Communities and Leisure,Supplies and Services,Feb-22
Slough Borough Council,2871,Cherry Trees Residential Care,"1,500.00",M42F,Adult Social Care Operations,Supplies and Services,Feb-22
Slough Borough Council,2871,Cherry Trees Residential Care,"3,000.00",M42F,Adult Social Care Operations,Supplies and Services,Feb-22
Slough Borough Council,2871,Cherry Trees Residential Care,"3,000.00",M42F,Adult Social Care Operations,Supplies and Services,Feb-22
Slough Borough Council,2871,Cherry Trees Residential Care,"3,321.43",M42F,Adult Social Care Operations,Supplies and Services,Feb-22
Slough Borough Council,803495,Christchurch Court Ltd,"8,002.40",M15D,Adult Social Care Operations,Supplies and Services,Feb-22
Slough Borough Council,2561,Christies Care Ltd,"4,404.00",M44D,Adult Social Care Operations,Supplies and Services,Feb-22
Slough Borough Council,1573,Cipfa Business Limited,975.00,B015,Finance,Indirect Employee Expenses,Feb-22
Slough Borough Council,807491,Cippenham School,"17,863.39",E579,Children & Families,Supplies and Services,Feb-22
Slough Borough Council,806550,City Homecare Ltd,714.00,A07R,Adult Social Care Operations,Supplies and Services,Feb-22
Slough Borough Council,806550,City Homecare Ltd,529.20,A07R,Adult Social Care Operations,Supplies and Services,Feb-22
Slough Borough Council,806550,City Homecare Ltd,"1,058.40",A07R,Adult Social Care Operations,Supplies and Services,Feb-22
Slough Borough Council,806550,City Homecare Ltd,"2,822.40",A07R,Adult Social Care Operations,Supplies and Services,Feb-22
Slough Borough Council,806550,City Homecare Ltd,529.20,A07R,Adult Social Care Operations,Supplies and Services,Feb-22
Slough Borough Council,806550,City Homecare Ltd,"2,116.80",A07R,Adult Social Care Operations,Supplies and Services,Feb-22
Slough Borough Council,806550,City Homecare Ltd,"1,058.40",A07R,Adult Social Care Operations,Supplies and Services,Feb-22
Slough Borough Council,806550,City Homecare Ltd,680.40,A07R,Adult Social Care Operations,Supplies and Services,Feb-22
Slough Borough Council,806550,City Homecare Ltd,"1,646.40",M44C,Adult Social Care Operations,Supplies and Services,Feb-22
Slough Borough Council,806550,City Homecare Ltd,"1,814.40",M44C,Adult Social Care Operations,Supplies and Services,Feb-22
Slough Borough Council,806550,City Homecare Ltd,"1,176.00",M44C,Adult Social Care Operations,Supplies and Services,Feb-22
Slough Borough Council,806550,City Homecare Ltd,"1,646.40",M44C,Adult Social Care Operations,Supplies and Services,Feb-22
Slough Borough Council,806550,City Homecare Ltd,856.80,M44C,Adult Social Care Operations,Supplies and Services,Feb-22
Slough Borough Council,806550,City Homecare Ltd,823.20,M44C,Adult Social Care Operations,Supplies and Services,Feb-22
Slough Borough Council,806550,City Homecare Ltd,"1,058.40",M44C,Adult Social Care Operations,Supplies and Services,Feb-22
Slough Borough Council,806550,City Homecare Ltd,"1,176.00",M44C,Adult Social Care Operations,Supplies and Services,Feb-22
Slough Borough Council,806550,City Homecare Ltd,772.80,M44C,Adult Social Care Operations,Supplies and Services,Feb-22
Slough Borough Council,806550,City Homecare Ltd,"1,075.20",M44C,Adult Social Care Operations,Supplies and Services,Feb-22
Slough Borough Council,806550,City Homecare Ltd,"2,116.80",M44C,Adult Social Care Operations,Supplies and Services,Feb-22
Slough Borough Council,806550,City Homecare Ltd,940.80,M44C,Adult Social Care Operations,Supplies and Services,Feb-22
Slough Borough Council,806550,City Homecare Ltd,"3,528.00",M44C,Adult Social Care Operations,Supplies and Services,Feb-22
Slough Borough Council,806550,City Homecare Ltd,"2,251.20",M44C,Adult Social Care Operations,Supplies and Services,Feb-22
Slough Borough Council,806550,City Homecare Ltd,"1,881.60",M44C,Adult Social Care Operations,Supplies and Services,Feb-22
Slough Borough Council,806550,City Homecare Ltd,"1,764.00",M44C,Adult Social Care Operations,Supplies and Services,Feb-22
Slough Borough Council,806550,City Homecare Ltd,688.80,M44C,Adult Social Care Operations,Supplies and Services,Feb-22
Slough Borough Council,806550,City Homecare Ltd,"1,058.40",M44C,Adult Social Care Operations,Supplies and Services,Feb-22
Slough Borough Council,806550,City Homecare Ltd,"1,176.00",M44C,Adult Social Care Operations,Supplies and Services,Feb-22
Slough Borough Council,806550,City Homecare Ltd,"1,310.40",M44C,Adult Social Care Operations,Supplies and Services,Feb-22
Slough Borough Council,806550,City Homecare Ltd,823.20,M44C,Adult Social Care Operations,Supplies and Services,Feb-22
Slough Borough Council,806550,City Homecare Ltd,"1,008.00",M44C,Adult Social Care Operations,Supplies and Services,Feb-22
Slough Borough Council,806550,City Homecare Ltd,940.80,M44C,Adult Social Care Operations,Supplies and Services,Feb-22
Slough Borough Council,806550,City Homecare Ltd,588.00,M44C,Adult Social Care Operations,Supplies and Services,Feb-22
Slough Borough Council,806550,City Homecare Ltd,"1,058.40",M44C,Adult Social Care Operations,Supplies and Services,Feb-22
Slough Borough Council,806550,City Homecare Ltd,"1,176.00",M44C,Adult Social Care Operations,Supplies and Services,Feb-22
Slough Borough Council,806550,City Homecare Ltd,823.20,M44C,Adult Social Care Operations,Supplies and Services,Feb-22
Slough Borough Council,806550,City Homecare Ltd,"2,251.20",M44C,Adult Social Care Operations,Supplies and Services,Feb-22
Slough Borough Council,806550,City Homecare Ltd,"1,881.60",M44C,Adult Social Care Operations,Supplies and Services,Feb-22
Slough Borough Council,806550,City Homecare Ltd,"2,116.80",M44C,Adult Social Care Operations,Supplies and Services,Feb-22
Slough Borough Council,806550,City Homecare Ltd,"1,881.60",M44C,Adult Social Care Operations,Supplies and Services,Feb-22
Slough Borough Council,806550,City Homecare Ltd,688.80,M44C,Adult Social Care Operations,Supplies and Services,Feb-22
Slough Borough Council,806550,City Homecare Ltd,"1,075.20",M44C,Adult Social Care Operations,Supplies and Services,Feb-22
Slough Borough Council,806550,City Homecare Ltd,940.80,M44C,Adult Social Care Operations,Supplies and Services,Feb-22
Slough Borough Council,806550,City Homecare Ltd,"1,881.60",M44C,Adult Social Care Operations,Supplies and Services,Feb-22
Slough Borough Council,806550,City Homecare Ltd,"1,814.40",M44C,Adult Social Care Operations,Supplies and Services,Feb-22
Slough Borough Council,806550,City Homecare Ltd,"1,176.00",M44C,Adult Social Care Operations,Supplies and Services,Feb-22
Slough Borough Council,806550,City Homecare Ltd,"1,764.00",M44C,Adult Social Care Operations,Supplies and Services,Feb-22
Slough Borough Council,806550,City Homecare Ltd,"3,528.00",M44C,Adult Social Care Operations,Supplies and Services,Feb-22
Slough Borough Council,806550,City Homecare Ltd,940.80,M44C,Adult Social Care Operations,Supplies and Services,Feb-22
Slough Borough Council,806550,City Homecare Ltd,"1,176.00",M44C,Adult Social Care Operations,Supplies and Services,Feb-22
Slough Borough Council,806550,City Homecare Ltd,588.00,M44C,Adult Social Care Operations,Supplies and Services,Feb-22
Slough Borough Council,806550,City Homecare Ltd,"1,058.40",M44C,Adult Social Care Operations,Supplies and Services,Feb-22
Slough Borough Council,806550,City Homecare Ltd,"1,940.40",M44C,Adult Social Care Operations,Supplies and Services,Feb-22
Slough Borough Council,806550,City Homecare Ltd,831.60,M44C,Adult Social Care Operations,Supplies and Services,Feb-22
Slough Borough Council,806550,City Homecare Ltd,"1,436.40",M44C,Adult Social Care Operations,Supplies and Services,Feb-22
Slough Borough Council,806550,City Homecare Ltd,869.40,M44C,Adult Social Care Operations,Supplies and Services,Feb-22
Slough Borough Council,806550,City Homecare Ltd,"2,083.20",M44C,Adult Social Care Operations,Supplies and Services,Feb-22
Slough Borough Council,806550,City Homecare Ltd,570.40,M44C,Adult Social Care Operations,Supplies and Services,Feb-22
Slough Borough Council,806550,City Homecare Ltd,823.20,M44D,Adult Social Care Operations,Supplies and Services,Feb-22
Slough Borough Council,806550,City Homecare Ltd,"1,948.80",M44D,Adult Social Care Operations,Supplies and Services,Feb-22
Slough Borough Council,806550,City Homecare Ltd,588.00,M44D,Adult Social Care Operations,Supplies and Services,Feb-22
Slough Borough Council,806550,City Homecare Ltd,588.00,M44D,Adult Social Care Operations,Supplies and Services,Feb-22
Slough Borough Council,806550,City Homecare Ltd,"1,948.80",M44D,Adult Social Care Operations,Supplies and Services,Feb-22
Slough Borough Council,806550,City Homecare Ltd,823.20,M44D,Adult Social Care Operations,Supplies and Services,Feb-22
Slough Borough Council,806550,City Homecare Ltd,"1,176.00",M44D,Adult Social Care Operations,Supplies and Services,Feb-22
Slough Borough Council,806550,City Homecare Ltd,705.60,M44D,Adult Social Care Operations,Supplies and Services,Feb-22
Slough Borough Council,806550,City Homecare Ltd,"1,310.40",M44D,Adult Social Care Operations,Supplies and Services,Feb-22
Slough Borough Council,806550,City Homecare Ltd,"1,411.20",M44E,Adult Social Care Operations,Supplies and Services,Feb-22
Slough Borough Council,806550,City Homecare Ltd,"1,411.20",M44E,Adult Social Care Operations,Supplies and Services,Feb-22
Slough Borough Council,806550,City Homecare Ltd,"1,478.40",M44F,Adult Social Care Operations,Supplies and Services,Feb-22
Slough Borough Council,806550,City Homecare Ltd,806.40,M44F,Adult Social Care Operations,Supplies and Services,Feb-22
Slough Borough Council,806550,City Homecare Ltd,840.00,M44F,Adult Social Care Operations,Supplies and Services,Feb-22
Slough Borough Council,806550,City Homecare Ltd,"1,478.40",M44F,Adult Social Care Operations,Supplies and Services,Feb-22
Slough Borough Council,806550,City Homecare Ltd,806.40,M44F,Adult Social Care Operations,Supplies and Services,Feb-22
Slough Borough Council,806550,City Homecare Ltd,840.00,M44F,Adult Social Care Operations,Supplies and Services,Feb-22
Slough Borough Council,806550,City Homecare Ltd,"1,730.40",M45C,Adult Social Care Operations,Supplies and Services,Feb-22
Slough Borough Council,806550,City Homecare Ltd,705.60,M45C,Adult Social Care Operations,Supplies and Services,Feb-22
Slough Borough Council,806550,City Homecare Ltd,"1,058.40",M48C,Adult Social Care Operations,Supplies and Services,Feb-22
Slough Borough Council,806550,City Homecare Ltd,"1,058.40",M48C,Adult Social Care Operations,Supplies and Services,Feb-22
Slough Borough Council,806550,City Homecare Ltd,588.00,M48C,Adult Social Care Operations,Supplies and Services,Feb-22
Slough Borough Council,806840,Claires Court Schools Ltd,"9,455.50",F552,DSG - High Needs Block,Supplies and Services,Feb-22
Slough Borough Council,1151,Claycots Primary School,"825,886.12",E209,DSG - Schools,Supplies and Services,Feb-22
Slough Borough Council,408,Clear Channel Uk Ltd,"1,300.00",B324,Finance,Supplies and Services,Feb-22
Slough Borough Council,408,Clear Channel Uk Ltd,"7,242.00",P149,Capital,Capital Charges,Feb-22
Slough Borough Council,805823,Collaborative Care Solutions,"2,454.73",B298,Finance,Supplies and Services,Feb-22
Slough Borough Council,805823,Collaborative Care Solutions,"5,966.03",B324,Finance,Supplies and Services,Feb-22
Slough Borough Council,459,Colliers Cre,"3,666.67",J006,HDC Housing Development,Supplies and Services,Feb-22
Slough Borough Council,286,Colnbrook C Of E Primary School,"12,523.55",E219,DSG - Schools,Supplies and Services,Feb-22
Slough Borough Council,2535,Comfort Care Services,"18,427.41",B298,Finance,Supplies and Services,Feb-22
Slough Borough Council,2535,Comfort Care Services,"83,027.23",B324,Finance,Supplies and Services,Feb-22
Slough Borough Council,2535,Comfort Care Services,"2,564.81",M42E,Adult Social Care Operations,Supplies and Services,Feb-22
Slough Borough Council,2535,Comfort Care Services,"1,053.00",M42E,Adult Social Care Operations,Supplies and Services,Feb-22
Slough Borough Council,2535,Comfort Care Services,"2,945.00",M42E,Adult Social Care Operations,Supplies and Services,Feb-22
Slough Borough Council,2535,Comfort Care Services,"2,564.81",M42E,Adult Social Care Operations,Supplies and Services,Feb-22
Slough Borough Council,2535,Comfort Care Services,"2,316.60",M42E,Adult Social Care Operations,Supplies and Services,Feb-22
Slough Borough Council,2535,Comfort Care Services,"2,482.07",M42E,Adult Social Care Operations,Supplies and Services,Feb-22
Slough Borough Council,2535,Comfort Care Services,"2,316.60",M42E,Adult Social Care Operations,Supplies and Services,Feb-22
Slough Borough Council,2535,Comfort Care Services,"2,564.81",M42E,Adult Social Care Operations,Supplies and Services,Feb-22
Slough Borough Council,2535,Comfort Care Services,"2,030.00",M42E,Adult Social Care Operations,Supplies and Services,Feb-22
Slough Borough Council,2535,Comfort Care Services,"2,336.72",M42E,Adult Social Care Operations,Supplies and Services,Feb-22
Slough Borough Council,2535,Comfort Care Services,"2,100.00",M42E,Adult Social Care Operations,Supplies and Services,Feb-22
Slough Borough Council,2535,Comfort Care Services,"2,883.12",M42E,Adult Social Care Operations,Supplies and Services,Feb-22
Slough Borough Council,2535,Comfort Care Services,700.00,M42E,Adult Social Care Operations,Supplies and Services,Feb-22
Slough Borough Council,2535,Comfort Care Services,"1,053.00",M42E,Adult Social Care Operations,Supplies and Services,Feb-22
Slough Borough Council,2535,Comfort Care Services,"1,579.50",M42F,Adult Social Care Operations,Supplies and Services,Feb-22
Slough Borough Council,2535,Comfort Care Services,"1,632.15",M42F,Adult Social Care Operations,Supplies and Services,Feb-22
Slough Borough Council,2535,Comfort Care Services,"1,632.15",M42F,Adult Social Care Operations,Supplies and Services,Feb-22
Slough Borough Council,2535,Comfort Care Services,"1,579.50",M42F,Adult Social Care Operations,Supplies and Services,Feb-22
Slough Borough Council,2535,Comfort Care Services,"1,579.50",M42F,Adult Social Care Operations,Supplies and Services,Feb-22
Slough Borough Council,2535,Comfort Care Services,"1,632.15",M42F,Adult Social Care Operations,Supplies and Services,Feb-22
Slough Borough Council,2535,Comfort Care Services,"1,632.15",M42F,Adult Social Care Operations,Supplies and Services,Feb-22
Slough Borough Council,2535,Comfort Care Services,"2,380.00",M42F,Adult Social Care Operations,Supplies and Services,Feb-22
Slough Borough Council,2535,Comfort Care Services,"1,580.00",M42F,Adult Social Care Operations,Supplies and Services,Feb-22
Slough Borough Council,2535,Comfort Care Services,"1,579.50",M42F,Adult Social Care Operations,Supplies and Services,Feb-22
Slough Borough Council,2535,Comfort Care Services,"2,380.00",M42F,Adult Social Care Operations,Supplies and Services,Feb-22
Slough Borough Council,2535,Comfort Care Services,"1,334.96",M42F,Adult Social Care Operations,Supplies and Services,Feb-22
Slough Borough Council,2535,Comfort Care Services,"1,174.92",M42F,Adult Social Care Operations,Supplies and Services,Feb-22
Slough Borough Council,2535,Comfort Care Services,758.00,M42F,Adult Social Care Operations,Supplies and Services,Feb-22
Slough Borough Council,2535,Comfort Care Services,"2,380.00",M42F,Adult Social Care Operations,Supplies and Services,Feb-22
Slough Borough Council,2535,Comfort Care Services,"2,509.80",M42F,Adult Social Care Operations,Supplies and Services,Feb-22
Slough Borough Council,2535,Comfort Care Services,758.00,M42F,Adult Social Care Operations,Supplies and Services,Feb-22
Slough Borough Council,2535,Comfort Care Services,758.00,M42F,Adult Social Care Operations,Supplies and Services,Feb-22
Slough Borough Council,2535,Comfort Care Services,758.00,M42F,Adult Social Care Operations,Supplies and Services,Feb-22
Slough Borough Council,2535,Comfort Care Services,"2,380.00",M42F,Adult Social Care Operations,Supplies and Services,Feb-22
Slough Borough Council,2535,Comfort Care Services,"3,138.00",M42F,Adult Social Care Operations,Supplies and Services,Feb-22
Slough Borough Council,2535,Comfort Care Services,"3,517.00",M42F,Adult Social Care Operations,Supplies and Services,Feb-22
Slough Borough Council,2535,Comfort Care Services,"1,174.92",M42F,Adult Social Care Operations,Supplies and Services,Feb-22
Slough Borough Council,2535,Comfort Care Services,758.00,M42F,Adult Social Care Operations,Supplies and Services,Feb-22
Slough Borough Council,2535,Comfort Care Services,909.60,M42F,Adult Social Care Operations,Supplies and Services,Feb-22
Slough Borough Council,2535,Comfort Care Services,"2,380.00",M42F,Adult Social Care Operations,Supplies and Services,Feb-22
Slough Borough Council,2535,Comfort Care Services,"2,380.00",M42F,Adult Social Care Operations,Supplies and Services,Feb-22
Slough Borough Council,2535,Comfort Care Services,"2,122.40",M44C,Adult Social Care Operations,Supplies and Services,Feb-22
Slough Borough Council,2535,Comfort Care Services,"-2,012.34",M44E,Adult Social Care Operations,Supplies and Services,Feb-22
Slough Borough Council,2535,Comfort Care Services,509.60,M44E,Adult Social Care Operations,Supplies and Services,Feb-22
Slough Borough Council,2535,Comfort Care Services,"4,029.80",M44E,Adult Social Care Operations,Supplies and Services,Feb-22
Slough Borough Council,2535,Comfort Care Services,"1,934.40",M44E,Adult Social Care Operations,Supplies and Services,Feb-22
Slough Borough Council,2535,Comfort Care Services,"1,053.00",M44F,Adult Social Care Operations,Supplies and Services,Feb-22
Slough Borough Council,2535,Comfort Care Services,"1,705.52",M44F,Adult Social Care Operations,Supplies and Services,Feb-22
Slough Borough Council,2535,Comfort Care Services,"1,190.00",M44F,Adult Social Care Operations,Supplies and Services,Feb-22
Slough Borough Council,2535,Comfort Care Services,"3,032.56",M44F,Adult Social Care Operations,Supplies and Services,Feb-22
Slough Borough Council,2535,Comfort Care Services,"1,190.00",M44F,Adult Social Care Operations,Supplies and Services,Feb-22
Slough Borough Council,2535,Comfort Care Services,"1,190.00",M44F,Adult Social Care Operations,Supplies and Services,Feb-22
Slough Borough Council,2535,Comfort Care Services,"1,190.00",M44F,Adult Social Care Operations,Supplies and Services,Feb-22
Slough Borough Council,2535,Comfort Care Services,"2,653.56",M44F,Adult Social Care Operations,Supplies and Services,Feb-22
Slough Borough Council,2535,Comfort Care Services,"3,138.00",M44F,Adult Social Care Operations,Supplies and Services,Feb-22
Slough Borough Council,2535,Comfort Care Services,"2,380.00",M44F,Adult Social Care Operations,Supplies and Services,Feb-22
Slough Borough Council,2535,Comfort Care Services,"2,380.00",M81D,Adult Social Care Operations,Supplies and Services,Feb-22
Slough Borough Council,3840,Community Housing And Therapy,"2,612.86",M80F,Adult Social Care Operations,Supplies and Services,Feb-22
Slough Borough Council,3840,Community Housing And Therapy,"2,615.51",M80F,Adult Social Care Operations,Supplies and Services,Feb-22
Slough Borough Council,3840,Community Housing And Therapy,"2,615.51",M80F,Adult Social Care Operations,Supplies and Services,Feb-22
Slough Borough Council,3840,Community Housing And Therapy,"2,615.51",M80F,Adult Social Care Operations,Supplies and Services,Feb-22
Slough Borough Council,807005,Complete Background Screening Ltd,579.00,B348,People,Supplies and Services,Feb-22
Slough Borough Council,1772,Computershare Voucher Services,"3,064.00",B348,People,Supplies and Services,Feb-22
Slough Borough Council,806314,CONNECT SOFTWARE SOLUTIONS LIMITED,"14,275.30",F150,Early Years & Prevention,Supplies and Services,Feb-22
Slough Borough Council,3670,Craegmoor Birches Grove Priory,"3,805.68",M27F,Adult Social Care Operations,Supplies and Services,Feb-22
Slough Borough Council,3670,Craegmoor Birches Grove Priory,"1,984.04",M27F,Adult Social Care Operations,Supplies and Services,Feb-22
Slough Borough Council,1638,Creative Support Ltd,"1,163.35",B298,Finance,Supplies and Services,Feb-22
Slough Borough Council,1638,Creative Support Ltd,"3,480.18",B324,Finance,Supplies and Services,Feb-22
Slough Borough Council,1638,Creative Support Ltd,"2,214.45",M42E,Adult Social Care Operations,Supplies and Services,Feb-22
Slough Borough Council,1638,Creative Support Ltd,"3,013.65",M42E,Adult Social Care Operations,Supplies and Services,Feb-22
Slough Borough Council,1638,Creative Support Ltd,"1,115.55",M42E,Adult Social Care Operations,Supplies and Services,Feb-22
Slough Borough Council,1638,Creative Support Ltd,989.00,M42E,Adult Social Care Operations,Supplies and Services,Feb-22
Slough Borough Council,1638,Creative Support Ltd,702.64,M44E,Adult Social Care Operations,Supplies and Services,Feb-22
Slough Borough Council,806983,Critiqom,614.51,H015,Customer and Communications,Supplies and Services,Feb-22
Slough Borough Council,806983,Critiqom,668.13,H015,Customer and Communications,Supplies and Services,Feb-22
Slough Borough Council,806983,Critiqom,874.63,H015,Customer and Communications,Supplies and Services,Feb-22
Slough Borough Council,806983,Critiqom,569.47,H015,Customer and Communications,Supplies and Services,Feb-22
Slough Borough Council,806983,Critiqom,"1,518.22",H015,Customer and Communications,Supplies and Services,Feb-22
Slough Borough Council,806983,Critiqom,"1,007.62",H015,Customer and Communications,Supplies and Services,Feb-22
Slough Borough Council,806063,Cruise Minibuses Ltd,"13,475.75",F123,Schools,Supplies and Services,Feb-22
Slough Borough Council,804319,Culturemix Arts Ltd,875.00,F253,Schools,Agency Staff,Feb-22
Slough Borough Council,1897,Datchet St.Marys C Of E Academy,"2,196.00",F552,DSG - High Needs Block,Supplies and Services,Feb-22
Slough Borough Council,807288,David Allwood,"4,836.50",C322,Communities and Leisure,Supplies and Services,Feb-22
Slough Borough Council,805964,Design South East,"3,300.00",D224,Planning and Transport,Supplies and Services,Feb-22
Slough Borough Council,3554,Dimensions (Uk) Ltd,"7,538.76",M42E,Adult Social Care Operations,Supplies and Services,Feb-22
Slough Borough Council,3554,Dimensions (Uk) Ltd,"7,201.83",M42E,Adult Social Care Operations,Supplies and Services,Feb-22
Slough Borough Council,3554,Dimensions (Uk) Ltd,"7,011.40",M42E,Adult Social Care Operations,Supplies and Services,Feb-22
Slough Borough Council,3554,Dimensions (Uk) Ltd,"5,624.02",M42E,Adult Social Care Operations,Supplies and Services,Feb-22
Slough Borough Council,3554,Dimensions (Uk) Ltd,"5,880.39",M42E,Adult Social Care Operations,Supplies and Services,Feb-22
Slough Borough Council,3554,Dimensions (Uk) Ltd,"7,484.55",M42E,Adult Social Care Operations,Supplies and Services,Feb-22
Slough Borough Council,3554,Dimensions (Uk) Ltd,"7,191.56",M42E,Adult Social Care Operations,Supplies and Services,Feb-22
Slough Borough Council,3554,Dimensions (Uk) Ltd,"6,233.48",M42E,Adult Social Care Operations,Supplies and Services,Feb-22
Slough Borough Council,3554,Dimensions (Uk) Ltd,"5,915.07",M42E,Adult Social Care Operations,Supplies and Services,Feb-22
Slough Borough Council,803306,Ditton Park Academy,"1,800.00",F417,DSG - High Needs Block,Supplies and Services,Feb-22
Slough Borough Council,803306,Ditton Park Academy,"15,542.00",E269,DSG - Schools,Supplies and Services,Feb-22
Slough Borough Council,1457,Dr Norman Gordon,"2,359.50",D320,Regulatory Services,Premises,Feb-22
Slough Borough Council,803177,Early Steps Preschool,"4,085.27",F909,DSG - Early Years,Supplies and Services,Feb-22
Slough Borough Council,803301,Eden Girls School,"3,291.67",E279,DSG - Schools,Supplies and Services,Feb-22
Slough Borough Council,1299,Edf Energy,"84,439.95",K526,Building Management,Premises,Feb-22
Slough Borough Council,1299,Edf Energy,572.31,K526,Building Management,Premises,Feb-22
Slough Borough Council,1299,Edf Energy,"52,520.64",D413,Major Infrastructure Projects,Supplies and Services,Feb-22
Slough Borough Council,803350,EDUFOCUS Ltd,"4,999.00",B349,People,Supplies and Services,Feb-22
Slough Borough Council,806044,Egress Software Technologies Ltd,"5,907.00",B282,Digital and Strategic IT,Supplies and Services,Feb-22
Slough Borough Council,807001,Elegant Care Services Ltd,"5,200.00",M42E,Adult Social Care Operations,Supplies and Services,Feb-22
Slough Borough Council,807001,Elegant Care Services Ltd,"9,199.99",M42E,Adult Social Care Operations,Supplies and Services,Feb-22
Slough Borough Council,807001,Elegant Care Services Ltd,"5,399.99",M42E,Adult Social Care Operations,Supplies and Services,Feb-22
Slough Borough Council,807001,Elegant Care Services Ltd,"6,099.99",M44C,Adult Social Care Operations,Supplies and Services,Feb-22
Slough Borough Council,806355,Elysium Healthcare,"11,044.68",M26E,Adult Social Care Operations,Supplies and Services,Feb-22
Slough Borough Council,806355,Elysium Healthcare,"9,576.52",M26E,Adult Social Care Operations,Supplies and Services,Feb-22
Slough Borough Council,3752,Endurance Health,"3,164.30",B298,Finance,Supplies and Services,Feb-22
Slough Borough Council,3752,Endurance Health,"4,971.69",B324,Finance,Supplies and Services,Feb-22
Slough Borough Council,3752,Endurance Health,"1,204.88",A07R,Adult Social Care Operations,Supplies and Services,Feb-22
Slough Borough Council,3752,Endurance Health,"1,087.68",A07R,Adult Social Care Operations,Supplies and Services,Feb-22
Slough Borough Council,3752,Endurance Health,"1,196.86",A07R,Adult Social Care Operations,Supplies and Services,Feb-22
Slough Borough Council,3752,Endurance Health,502.19,A07R,Adult Social Care Operations,Supplies and Services,Feb-22
Slough Borough Council,3752,Endurance Health,883.58,A07R,Adult Social Care Operations,Supplies and Services,Feb-22
Slough Borough Council,3752,Endurance Health,838.07,M44C,Adult Social Care Operations,Supplies and Services,Feb-22
Slough Borough Council,3752,Endurance Health,874.65,M44C,Adult Social Care Operations,Supplies and Services,Feb-22
Slough Borough Council,3752,Endurance Health,571.20,M44C,Adult Social Care Operations,Supplies and Services,Feb-22
Slough Borough Council,3752,Endurance Health,946.05,M44C,Adult Social Care Operations,Supplies and Services,Feb-22
Slough Borough Council,3752,Endurance Health,"1,367.31",M44C,Adult Social Care Operations,Supplies and Services,Feb-22
Slough Borough Council,3752,Endurance Health,"2,249.10",M44C,Adult Social Care Operations,Supplies and Services,Feb-22
Slough Borough Council,3752,Endurance Health,"2,998.80",M44C,Adult Social Care Operations,Supplies and Services,Feb-22
Slough Borough Council,3752,Endurance Health,"1,124.55",M44C,Adult Social Care Operations,Supplies and Services,Feb-22
Slough Borough Council,3752,Endurance Health,"1,124.55",M44C,Adult Social Care Operations,Supplies and Services,Feb-22
Slough Borough Council,3752,Endurance Health,696.15,M44C,Adult Social Care Operations,Supplies and Services,Feb-22
Slough Borough Council,3752,Endurance Health,"1,999.20",M44C,Adult Social Care Operations,Supplies and Services,Feb-22
Slough Borough Council,3752,Endurance Health,696.15,M44C,Adult Social Care Operations,Supplies and Services,Feb-22
Slough Borough Council,3752,Endurance Health,"1,374.45",M44C,Adult Social Care Operations,Supplies and Services,Feb-22
Slough Borough Council,3752,Endurance Health,882.10,M44C,Adult Social Care Operations,Supplies and Services,Feb-22
Slough Borough Council,3752,Endurance Health,"1,124.55",M44C,Adult Social Care Operations,Supplies and Services,Feb-22
Slough Borough Council,3752,Endurance Health,"1,249.50",M44C,Adult Social Care Operations,Supplies and Services,Feb-22
Slough Borough Council,3752,Endurance Health,"1,124.55",M44C,Adult Social Care Operations,Supplies and Services,Feb-22
Slough Borough Council,3752,Endurance Health,749.70,M44C,Adult Social Care Operations,Supplies and Services,Feb-22
Slough Borough Council,3752,Endurance Health,946.05,M44C,Adult Social Care Operations,Supplies and Services,Feb-22
Slough Borough Council,3752,Endurance Health,"1,124.55",M44C,Adult Social Care Operations,Supplies and Services,Feb-22
Slough Borough Council,3752,Endurance Health,838.95,M44C,Adult Social Care Operations,Supplies and Services,Feb-22
Slough Borough Council,3752,Endurance Health,624.75,M44C,Adult Social Care Operations,Supplies and Services,Feb-22
Slough Borough Council,3752,Endurance Health,"1,793.18",M44C,Adult Social Care Operations,Supplies and Services,Feb-22
Slough Borough Council,3752,Endurance Health,892.50,M44C,Adult Social Care Operations,Supplies and Services,Feb-22
Slough Borough Council,3752,Endurance Health,"1,385.87",M44C,Adult Social Care Operations,Supplies and Services,Feb-22
Slough Borough Council,3752,Endurance Health,684.28,M44D,Adult Social Care Operations,Supplies and Services,Feb-22
Slough Borough Council,3752,Endurance Health,"1,208.17",M44D,Adult Social Care Operations,Supplies and Services,Feb-22
Slough Borough Council,3752,Endurance Health,"1,178.10",M44D,Adult Social Care Operations,Supplies and Services,Feb-22
Slough Borough Council,3752,Endurance Health,624.75,M44D,Adult Social Care Operations,Supplies and Services,Feb-22
Slough Borough Council,3752,Endurance Health,"1,526.18",M44D,Adult Social Care Operations,Supplies and Services,Feb-22
Slough Borough Council,3752,Endurance Health,624.75,M44D,Adult Social Care Operations,Supplies and Services,Feb-22
Slough Borough Council,3752,Endurance Health,"2,249.10",M44D,Adult Social Care Operations,Supplies and Services,Feb-22
Slough Borough Council,3752,Endurance Health,606.90,M44F,Adult Social Care Operations,Supplies and Services,Feb-22
Slough Borough Council,3752,Endurance Health,"2,700.80",M48C,Adult Social Care Operations,Supplies and Services,Feb-22
Slough Borough Council,3752,Endurance Health,"1,249.50",M48C,Adult Social Care Operations,Supplies and Services,Feb-22
Slough Borough Council,805423,Enriched Care,"3,379.60",M44D,Adult Social Care Operations,Supplies and Services,Feb-22
Slough Borough Council,805423,Enriched Care,"2,360.40",M44F,Adult Social Care Operations,Supplies and Services,Feb-22
Slough Borough Council,805423,Enriched Care,"2,601.20",M44F,Adult Social Care Operations,Supplies and Services,Feb-22
Slough Borough Council,805423,Enriched Care,"3,990.00",M44F,Adult Social Care Operations,Supplies and Services,Feb-22
Slough Borough Council,805423,Enriched Care,"2,584.40",M44F,Adult Social Care Operations,Supplies and Services,Feb-22
Slough Borough Council,805423,Enriched Care,"2,500.40",M44F,Adult Social Care Operations,Supplies and Services,Feb-22
Slough Borough Council,805423,Enriched Care,"1,587.88",M80F,Adult Social Care Operations,Supplies and Services,Feb-22
Slough Borough Council,807310,Enterprise Rent-A-Car UK Limited trading as Enterprise Flex-E-Rent,850.45,D620,Direct Service Organisation (DSO),Supplies and Services,Feb-22
Slough Borough Council,807310,Enterprise Rent-A-Car UK Limited trading as Enterprise Flex-E-Rent,850.99,D750,Direct Service Organisation (DSO),Supplies and Services,Feb-22
Slough Borough Council,807310,Enterprise Rent-A-Car UK Limited trading as Enterprise Flex-E-Rent,"27,639.10",D910,Direct Service Organisation (DSO),Transport,Feb-22
Slough Borough Council,2677,Eton House Residential Home,"3,192.00",M25C,Adult Social Care Operations,Supplies and Services,Feb-22
Slough Borough Council,2677,Eton House Residential Home,"3,192.00",M25C,Adult Social Care Operations,Supplies and Services,Feb-22
Slough Borough Council,2677,Eton House Residential Home,"3,534.00",M25C,Adult Social Care Operations,Supplies and Services,Feb-22
Slough Borough Council,2677,Eton House Residential Home,"3,534.00",M25C,Adult Social Care Operations,Supplies and Services,Feb-22
Slough Borough Council,2677,Eton House Residential Home,"2,400.00",M27C,Adult Social Care Operations,Supplies and Services,Feb-22
Slough Borough Council,2677,Eton House Residential Home,"2,400.00",M27C,Adult Social Care Operations,Supplies and Services,Feb-22
Slough Borough Council,2677,Eton House Residential Home,"2,657.14",M27C,Adult Social Care Operations,Supplies and Services,Feb-22
Slough Borough Council,2677,Eton House Residential Home,"2,657.14",M27C,Adult Social Care Operations,Supplies and Services,Feb-22
Slough Borough Council,2677,Eton House Residential Home,"3,942.00",M27F,Adult Social Care Operations,Supplies and Services,Feb-22
Slough Borough Council,2677,Eton House Residential Home,"4,364.36",M27F,Adult Social Care Operations,Supplies and Services,Feb-22
Slough Borough Council,2677,Eton House Residential Home,"2,674.93",M27F,Adult Social Care Operations,Supplies and Services,Feb-22
Slough Borough Council,2677,Eton House Residential Home,"4,223.57",M27F,Adult Social Care Operations,Supplies and Services,Feb-22
Slough Borough Council,2677,Eton House Residential Home,"4,364.36",M27F,Adult Social Care Operations,Supplies and Services,Feb-22
Slough Borough Council,806501,Excellent Healthcare Services Ltd,"1,283.70",M44C,Adult Social Care Operations,Supplies and Services,Feb-22
Slough Borough Council,806501,Excellent Healthcare Services Ltd,"1,960.56",M44C,Adult Social Care Operations,Supplies and Services,Feb-22
Slough Borough Council,806501,Excellent Healthcare Services Ltd,544.60,M44C,Adult Social Care Operations,Supplies and Services,Feb-22
Slough Borough Council,806501,Excellent Healthcare Services Ltd,"1,960.56",M44C,Adult Social Care Operations,Supplies and Services,Feb-22
Slough Borough Council,806501,Excellent Healthcare Services Ltd,529.04,M44C,Adult Social Care Operations,Supplies and Services,Feb-22
Slough Borough Council,806501,Excellent Healthcare Services Ltd,544.60,M44C,Adult Social Care Operations,Supplies and Services,Feb-22
Slough Borough Council,806501,Excellent Healthcare Services Ltd,529.04,M44C,Adult Social Care Operations,Supplies and Services,Feb-22
Slough Borough Council,806501,Excellent Healthcare Services Ltd,529.04,M44C,Adult Social Care Operations,Supplies and Services,Feb-22
Slough Borough Council,806501,Excellent Healthcare Services Ltd,529.04,M44C,Adult Social Care Operations,Supplies and Services,Feb-22
Slough Borough Council,806501,Excellent Healthcare Services Ltd,529.04,M44C,Adult Social Care Operations,Supplies and Services,Feb-22
Slough Borough Council,806501,Excellent Healthcare Services Ltd,980.28,M44C,Adult Social Care Operations,Supplies and Services,Feb-22
Slough Borough Council,806501,Excellent Healthcare Services Ltd,778.00,M44C,Adult Social Care Operations,Supplies and Services,Feb-22
Slough Borough Council,806501,Excellent Healthcare Services Ltd,980.28,M44C,Adult Social Care Operations,Supplies and Services,Feb-22
Slough Borough Council,806501,Excellent Healthcare Services Ltd,653.52,M44F,Adult Social Care Operations,Supplies and Services,Feb-22
Slough Borough Council,806501,Excellent Healthcare Services Ltd,871.36,M44F,Adult Social Care Operations,Supplies and Services,Feb-22
Slough Borough Council,806501,Excellent Healthcare Services Ltd,871.36,M44F,Adult Social Care Operations,Supplies and Services,Feb-22
Slough Borough Council,806501,Excellent Healthcare Services Ltd,653.52,M44F,Adult Social Care Operations,Supplies and Services,Feb-22
Slough Borough Council,806501,Excellent Healthcare Services Ltd,"1,415.96",M45C,Adult Social Care Operations,Supplies and Services,Feb-22
Slough Borough Council,806501,Excellent Healthcare Services Ltd,"1,587.12",M45C,Adult Social Care Operations,Supplies and Services,Feb-22
Slough Borough Council,806501,Excellent Healthcare Services Ltd,"1,587.12",M45C,Adult Social Care Operations,Supplies and Services,Feb-22
Slough Borough Council,807560,Exeter Royal Academy for Deaf Education,"36,056.00",F558,DSG - High Needs Block,Supplies and Services,Feb-22
Slough Borough Council,808079,Fairley House School,"11,368.00",F462,DSG - High Needs Block,Supplies and Services,Feb-22
Slough Borough Council,805225,Falcon Surfacing Ltd,"2,216.04",D880,Direct Service Organisation (DSO),Supplies and Services,Feb-22
Slough Borough Council,805225,Falcon Surfacing Ltd,"11,649.00",D880,Direct Service Organisation (DSO),Supplies and Services,Feb-22
Slough Borough Council,805225,Falcon Surfacing Ltd,"2,863.08",D880,Direct Service Organisation (DSO),Supplies and Services,Feb-22
Slough Borough Council,805225,Falcon Surfacing Ltd,"7,571.08",D880,Direct Service Organisation (DSO),Supplies and Services,Feb-22
Slough Borough Council,805225,Falcon Surfacing Ltd,"1,678.00",D880,Direct Service Organisation (DSO),Supplies and Services,Feb-22
Slough Borough Council,805225,Falcon Surfacing Ltd,"1,024.70",D880,Direct Service Organisation (DSO),Supplies and Services,Feb-22
Slough Borough Council,805225,Falcon Surfacing Ltd,660.00,D880,Direct Service Organisation (DSO),Supplies and Services,Feb-22
Slough Borough Council,805225,Falcon Surfacing Ltd,"-7,571.08",D880,Direct Service Organisation (DSO),Supplies and Services,Feb-22
Slough Borough Council,805225,Falcon Surfacing Ltd,"2,100.00",D880,Direct Service Organisation (DSO),Supplies and Services,Feb-22
Slough Borough Council,805225,Falcon Surfacing Ltd,"2,100.00",D880,Direct Service Organisation (DSO),Supplies and Services,Feb-22
Slough Borough Council,805225,Falcon Surfacing Ltd,"1,510.00",D880,Direct Service Organisation (DSO),Supplies and Services,Feb-22
Slough Borough Council,805225,Falcon Surfacing Ltd,"9,385.95",D880,Direct Service Organisation (DSO),Supplies and Services,Feb-22
Slough Borough Council,805225,Falcon Surfacing Ltd,"4,575.00",D880,Direct Service Organisation (DSO),Supplies and Services,Feb-22
Slough Borough Council,805225,Falcon Surfacing Ltd,"1,680.00",D880,Direct Service Organisation (DSO),Supplies and Services,Feb-22
Slough Borough Council,805225,Falcon Surfacing Ltd,910.00,D880,Direct Service Organisation (DSO),Supplies and Services,Feb-22
Slough Borough Council,805225,Falcon Surfacing Ltd,"1,150.00",D880,Direct Service Organisation (DSO),Supplies and Services,Feb-22
Slough Borough Council,805225,Falcon Surfacing Ltd,"2,745.00",D880,Direct Service Organisation (DSO),Supplies and Services,Feb-22
Slough Borough Council,805225,Falcon Surfacing Ltd,"3,660.00",D880,Direct Service Organisation (DSO),Supplies and Services,Feb-22
Slough Borough Council,805225,Falcon Surfacing Ltd,"7,571.08",D880,Direct Service Organisation (DSO),Supplies and Services,Feb-22
Slough Borough Council,641,Falon Nameplates Limited,972.22,D320,Regulatory Services,Supplies and Services,Feb-22
Slough Borough Council,4031,Family Support Practise Limited,"2,025.00",A03D,Adult Social Care Operations,Supplies and Services,Feb-22
Slough Borough Council,4031,Family Support Practise Limited,"1,665.00",B277,Digital and Strategic IT,Supplies and Services,Feb-22
Slough Borough Council,4031,Family Support Practise Limited,"1,665.00",B277,Digital and Strategic IT,Supplies and Services,Feb-22
Slough Borough Council,4031,Family Support Practise Limited,"1,665.00",B277,Digital and Strategic IT,Supplies and Services,Feb-22
Slough Borough Council,4031,Family Support Practise Limited,"1,665.00",B277,Digital and Strategic IT,Supplies and Services,Feb-22
Slough Borough Council,475,Farnham Road Surgery,"13,953.66",A04C,Adult Social Care Commissioning,Supplies and Services,Feb-22
Slough Borough Council,955,First Beeline Buses Ltd,"6,628.22",D512,Major Infrastructure Projects,Supplies and Services,Feb-22
Slough Borough Council,955,First Beeline Buses Ltd,"6,731.21",D512,Major Infrastructure Projects,Supplies and Services,Feb-22
Slough Borough Council,955,First Beeline Buses Ltd,"5,906.40",D512,Major Infrastructure Projects,Supplies and Services,Feb-22
Slough Borough Council,955,First Beeline Buses Ltd,"6,814.74",D512,Major Infrastructure Projects,Supplies and Services,Feb-22
Slough Borough Council,955,First Beeline Buses Ltd,"6,258.66",D512,Major Infrastructure Projects,Supplies and Services,Feb-22
Slough Borough Council,955,First Beeline Buses Ltd,"5,728.34",D512,Major Infrastructure Projects,Supplies and Services,Feb-22
Slough Borough Council,955,First Beeline Buses Ltd,"6,106.36",D512,Major Infrastructure Projects,Supplies and Services,Feb-22
Slough Borough Council,955,First Beeline Buses Ltd,"5,724.53",D512,Major Infrastructure Projects,Supplies and Services,Feb-22
Slough Borough Council,955,First Beeline Buses Ltd,"6,274.62",D512,Major Infrastructure Projects,Supplies and Services,Feb-22
Slough Borough Council,955,First Beeline Buses Ltd,"5,472.97",D512,Major Infrastructure Projects,Supplies and Services,Feb-22
Slough Borough Council,955,First Beeline Buses Ltd,"95,439.88",D512,Major Infrastructure Projects,Supplies and Services,Feb-22
Slough Borough Council,955,First Beeline Buses Ltd,"102,647.14",D512,Major Infrastructure Projects,Supplies and Services,Feb-22
Slough Borough Council,955,First Beeline Buses Ltd,"108,505.96",D512,Major Infrastructure Projects,Supplies and Services,Feb-22
Slough Borough Council,955,First Beeline Buses Ltd,"104,395.89",D512,Major Infrastructure Projects,Supplies and Services,Feb-22
Slough Borough Council,955,First Beeline Buses Ltd,"105,457.46",D512,Major Infrastructure Projects,Supplies and Services,Feb-22
Slough Borough Council,955,First Beeline Buses Ltd,"95,221.25",D512,Major Infrastructure Projects,Supplies and Services,Feb-22
Slough Borough Council,955,First Beeline Buses Ltd,"87,958.96",D512,Major Infrastructure Projects,Supplies and Services,Feb-22
Slough Borough Council,955,First Beeline Buses Ltd,"87,399.21",D512,Major Infrastructure Projects,Supplies and Services,Feb-22
Slough Borough Council,955,First Beeline Buses Ltd,"99,823.24",D512,Major Infrastructure Projects,Supplies and Services,Feb-22
Slough Borough Council,955,First Beeline Buses Ltd,"107,862.07",D512,Major Infrastructure Projects,Supplies and Services,Feb-22
Slough Borough Council,1413,First Greater Western Ltd,586.05,F123,Schools,Supplies and Services,Feb-22
Slough Borough Council,1413,First Greater Western Ltd,"2,566.05",F123,Schools,Supplies and Services,Feb-22
Slough Borough Council,754,First Steps Day Nursery,"7,676.23",F909,DSG - Early Years,Supplies and Services,Feb-22
Slough Borough Council,1626,Five Star Radio Cars Limited,"1,353.75",F123,Schools,Supplies and Services,Feb-22
Slough Borough Council,1626,Five Star Radio Cars Limited,"2,520.00",F123,Schools,Supplies and Services,Feb-22
Slough Borough Council,1626,Five Star Radio Cars Limited,"1,895.25",F123,Schools,Supplies and Services,Feb-22
Slough Borough Council,1626,Five Star Radio Cars Limited,"1,235.00",F123,Schools,Supplies and Services,Feb-22
Slough Borough Council,1626,Five Star Radio Cars Limited,"3,060.00",F123,Schools,Supplies and Services,Feb-22
Slough Borough Council,1204,Forget Me Not,"1,918.97",B298,Finance,Supplies and Services,Feb-22
Slough Borough Council,1204,Forget Me Not,"2,983.01",B324,Finance,Supplies and Services,Feb-22
Slough Borough Council,1204,Forget Me Not,"3,800.00",M25C,Adult Social Care Operations,Supplies and Services,Feb-22
Slough Borough Council,1204,Forget Me Not,"3,180.00",M25C,Adult Social Care Operations,Supplies and Services,Feb-22
Slough Borough Council,1204,Forget Me Not,"3,400.00",M27C,Adult Social Care Operations,Supplies and Services,Feb-22
Slough Borough Council,1204,Forget Me Not,"3,047.40",M27C,Adult Social Care Operations,Supplies and Services,Feb-22
Slough Borough Council,807250,Forthmeadow Limited,"2,328.00",M25C,Adult Social Care Operations,Supplies and Services,Feb-22
Slough Borough Council,807250,Forthmeadow Limited,"2,328.00",M25C,Adult Social Care Operations,Supplies and Services,Feb-22
Slough Borough Council,647,Foxborough Primary School,"10,647.76",E229,DSG - Schools,Supplies and Services,Feb-22
Slough Borough Council,806480,Frontier NX Limited,"4,249.50",A04C,Adult Social Care Commissioning,Supplies and Services,Feb-22
Slough Borough Council,806480,Frontier NX Limited,698.15,A04C,Adult Social Care Commissioning,Supplies and Services,Feb-22
Slough Borough Council,807125,Futures For Shared Lives,"3,103.80",M36E,Adult Social Care Operations,Supplies and Services,Feb-22
Slough Borough Council,1555,Gallagher Bassett,"23,962.13",B018,Finance,Supplies and Services,Feb-22
Slough Borough Council,1555,Gallagher Bassett,"6,294.00",B018,Finance,Supplies and Services,Feb-22
Slough Borough Council,1555,Gallagher Bassett,"9,310.63",B018,Finance,Supplies and Services,Feb-22
Slough Borough Council,1555,Gallagher Bassett,"1,575.00",B018,Finance,Supplies and Services,Feb-22
Slough Borough Council,1555,Gallagher Bassett,"14,393.94",B018,Finance,Supplies and Services,Feb-22
Slough Borough Council,807952,Gazprom Energy,"31,671.59",K526,Building Management,Premises,Feb-22
Slough Borough Council,807952,Gazprom Energy,"8,330.16",K526,Building Management,Premises,Feb-22
Slough Borough Council,807952,Gazprom Energy,"35,886.73",K526,Building Management,Premises,Feb-22
Slough Borough Council,807952,Gazprom Energy,"9,185.81",K526,Building Management,Premises,Feb-22
Slough Borough Council,807952,Gazprom Energy,"23,473.21",K526,Building Management,Premises,Feb-22
Slough Borough Council,807952,Gazprom Energy,"6,941.44",K526,Building Management,Premises,Feb-22
Slough Borough Council,650,George Lines (Merchants) Ltd,672.00,D750,Direct Service Organisation (DSO),Supplies and Services,Feb-22
Slough Borough Council,650,George Lines (Merchants) Ltd,"4,737.72",D880,Direct Service Organisation (DSO),Supplies and Services,Feb-22
Slough Borough Council,650,George Lines (Merchants) Ltd,"13,035.38",D880,Direct Service Organisation (DSO),Supplies and Services,Feb-22
Slough Borough Council,650,George Lines (Merchants) Ltd,748.00,D880,Direct Service Organisation (DSO),Supplies and Services,Feb-22
Slough Borough Council,803332,Get Berkshire Active,"1,584.84",B211,Communities and Leisure,Premises,Feb-22
Slough Borough Council,803955,Gillotts School,"6,000.00",F552,DSG - High Needs Block,Supplies and Services,Feb-22
Slough Borough Council,806204,GLOBAL MEDIATION LIMITED,"2,000.00",F500,Inclusion,Supplies and Services,Feb-22
Slough Borough Council,807340,Goldcrest Care Services,"2,000.96",B298,Finance,Supplies and Services,Feb-22
Slough Borough Council,806485,GPF Lewis Plc,"69,573.49",P101,Capital,Capital Charges,Feb-22
Slough Borough Council,2830,GR Response Healthcare Ltd,"1,750.00",A07R,Adult Social Care Operations,Supplies and Services,Feb-22
Slough Borough Council,2830,GR Response Healthcare Ltd,"2,250.08",A07R,Adult Social Care Operations,Supplies and Services,Feb-22
Slough Borough Council,2830,GR Response Healthcare Ltd,"1,995.00",M44C,Adult Social Care Operations,Supplies and Services,Feb-22
Slough Borough Council,2830,GR Response Healthcare Ltd,"1,064.00",M44C,Adult Social Care Operations,Supplies and Services,Feb-22
Slough Borough Council,2830,GR Response Healthcare Ltd,"2,385.45",M44C,Adult Social Care Operations,Supplies and Services,Feb-22
Slough Borough Council,2830,GR Response Healthcare Ltd,"2,394.00",M44C,Adult Social Care Operations,Supplies and Services,Feb-22
Slough Borough Council,2830,GR Response Healthcare Ltd,"1,852.50",M44C,Adult Social Care Operations,Supplies and Services,Feb-22
Slough Borough Council,2830,GR Response Healthcare Ltd,665.00,M44C,Adult Social Care Operations,Supplies and Services,Feb-22
Slough Borough Council,2830,GR Response Healthcare Ltd,"1,330.00",M44C,Adult Social Care Operations,Supplies and Services,Feb-22
Slough Borough Council,2830,GR Response Healthcare Ltd,"2,394.00",M44C,Adult Social Care Operations,Supplies and Services,Feb-22
Slough Borough Council,2830,GR Response Healthcare Ltd,"2,546.00",M44C,Adult Social Care Operations,Supplies and Services,Feb-22
Slough Borough Council,2830,GR Response Healthcare Ltd,"2,205.44",M44C,Adult Social Care Operations,Supplies and Services,Feb-22
Slough Borough Council,2830,GR Response Healthcare Ltd,"2,428.50",M44C,Adult Social Care Operations,Supplies and Services,Feb-22
Slough Borough Council,2830,GR Response Healthcare Ltd,"1,464.20",M44C,Adult Social Care Operations,Supplies and Services,Feb-22
Slough Borough Council,2830,GR Response Healthcare Ltd,"2,242.00",M44D,Adult Social Care Operations,Supplies and Services,Feb-22
Slough Borough Council,2830,GR Response Healthcare Ltd,"1,596.00",M44D,Adult Social Care Operations,Supplies and Services,Feb-22
Slough Borough Council,2830,GR Response Healthcare Ltd,665.00,M44D,Adult Social Care Operations,Supplies and Services,Feb-22
Slough Borough Council,2830,GR Response Healthcare Ltd,"2,812.00",M44D,Adult Social Care Operations,Supplies and Services,Feb-22
Slough Borough Council,2830,GR Response Healthcare Ltd,"2,394.00",M44D,Adult Social Care Operations,Supplies and Services,Feb-22
Slough Borough Council,2830,GR Response Healthcare Ltd,"2,250.08",M44D,Adult Social Care Operations,Supplies and Services,Feb-22
Slough Borough Council,2830,GR Response Healthcare Ltd,"2,250.08",M44D,Adult Social Care Operations,Supplies and Services,Feb-22
Slough Borough Council,2830,GR Response Healthcare Ltd,"2,128.00",M44F,Adult Social Care Operations,Supplies and Services,Feb-22
Slough Borough Council,2830,GR Response Healthcare Ltd,570.92,M44F,Adult Social Care Operations,Supplies and Services,Feb-22
Slough Borough Council,2830,GR Response Healthcare Ltd,"2,249.10",M45C,Adult Social Care Operations,Supplies and Services,Feb-22
Slough Borough Council,2830,GR Response Healthcare Ltd,"1,089.46",M45C,Adult Social Care Operations,Supplies and Services,Feb-22
Slough Borough Council,2830,GR Response Healthcare Ltd,"3,002.00",M48C,Adult Social Care Operations,Supplies and Services,Feb-22
Slough Borough Council,2830,GR Response Healthcare Ltd,"10,600.00",A06C,Adult Social Care Commissioning,Supplies and Services,Feb-22
Slough Borough Council,805191,Graphiti Art Ltd,690.00,D880,Direct Service Organisation (DSO),Supplies and Services,Feb-22
Slough Borough Council,805069,Grove Academy,"10,290.53",E299,DSG - Schools,Supplies and Services,Feb-22
Slough Borough Council,3228,H Plus Care Ltd,"3,776.00",M17C,Adult Social Care Operations,Supplies and Services,Feb-22
Slough Borough Council,3228,H Plus Care Ltd,"3,776.00",M18C,Adult Social Care Operations,Supplies and Services,Feb-22
Slough Borough Council,3228,H Plus Care Ltd,"5,000.00",M25C,Adult Social Care Operations,Supplies and Services,Feb-22
Slough Borough Council,3228,H Plus Care Ltd,"4,800.00",M26E,Adult Social Care Operations,Supplies and Services,Feb-22
Slough Borough Council,744,Hampshire County Council,883.85,D015,Major Infrastructure Projects,Supplies and Services,Feb-22
Slough Borough Council,744,Hampshire County Council,"8,223.60",D015,Major Infrastructure Projects,Supplies and Services,Feb-22
Slough Borough Council,744,Hampshire County Council,"4,884.00",D015,Major Infrastructure Projects,Supplies and Services,Feb-22
Slough Borough Council,744,Hampshire County Council,"3,087.60",D015,Major Infrastructure Projects,Supplies and Services,Feb-22
Slough Borough Council,744,Hampshire County Council,"3,946.00",D015,Major Infrastructure Projects,Supplies and Services,Feb-22
Slough Borough Council,744,Hampshire County Council,"2,021.00",D015,Major Infrastructure Projects,Supplies and Services,Feb-22
Slough Borough Council,1381,Haybrook College,"1,810.00",F417,DSG - High Needs Block,Supplies and Services,Feb-22
Slough Borough Council,1381,Haybrook College,"120,894.58",E809,DSG - High Needs Block,Supplies and Services,Feb-22
Slough Borough Council,3784,Haybrook College Pru,"54,200.00",E809,DSG - High Needs Block,Supplies and Services,Feb-22
Slough Borough Council,807158,Helen Tullie,600.00,F253,Schools,Agency Staff,Feb-22
Slough Borough Council,803447,Herewards House Residential Home,"2,878.57",M27C,Adult Social Care Operations,Supplies and Services,Feb-22
Slough Borough Council,803447,Herewards House Residential Home,"2,600.00",M27C,Adult Social Care Operations,Supplies and Services,Feb-22
Slough Borough Council,803447,Herewards House Residential Home,"2,878.57",M27C,Adult Social Care Operations,Supplies and Services,Feb-22
Slough Borough Council,803447,Herewards House Residential Home,"2,785.71",M27C,Adult Social Care Operations,Supplies and Services,Feb-22
Slough Borough Council,803447,Herewards House Residential Home,"2,785.71",M27C,Adult Social Care Operations,Supplies and Services,Feb-22
Slough Borough Council,803447,Herewards House Residential Home,"2,878.57",M27C,Adult Social Care Operations,Supplies and Services,Feb-22
Slough Borough Council,3387,Herschel Grammar School,"2,160.00",B297,Finance,Government Grants,Feb-22
Slough Borough Council,806731,High Hurlands Homes,"7,451.96",M26E,Adult Social Care Operations,Supplies and Services,Feb-22
Slough Borough Council,3250,Hodge Hill Grange H C One Ltd,"2,380.00",M15D,Adult Social Care Operations,Supplies and Services,Feb-22
Slough Borough Council,850,Holy Family Catholic Primary School,"174,433.17",E259,DSG - Schools,Supplies and Services,Feb-22
Slough Borough Council,807737,Homelink Healthcare Limited,"3,350.44",B298,Finance,Supplies and Services,Feb-22
Slough Borough Council,807737,Homelink Healthcare Limited,"9,943.38",B324,Finance,Supplies and Services,Feb-22
Slough Borough Council,2680,Iam Consulting Services,"2,040.00",D320,Regulatory Services,Supplies and Services,Feb-22
Slough Borough Council,2917,Imperial Coaches Ltd,"3,990.00",F123,Schools,Supplies and Services,Feb-22
Slough Borough Council,808217,Indent Design Ltd,"2,440.00",B079,Regeneration Development,Capital Charges,Feb-22
Slough Borough Council,807666,Independence Home and Domicilary Care,"3,272.10",M44F,Adult Social Care Operations,Supplies and Services,Feb-22
Slough Borough Council,807666,Independence Home and Domicilary Care,711.33,M44F,Adult Social Care Operations,Supplies and Services,Feb-22
Slough Borough Council,807666,Independence Home and Domicilary Care,"5,334.94",M44F,Adult Social Care Operations,Supplies and Services,Feb-22
Slough Borough Council,807666,Independence Home and Domicilary Care,"2,667.47",M44F,Adult Social Care Operations,Supplies and Services,Feb-22
Slough Borough Council,807666,Independence Home and Domicilary Care,"3,367.84",M44F,Adult Social Care Operations,Supplies and Services,Feb-22
Slough Borough Council,807666,Independence Home and Domicilary Care,"1,738.24",M44F,Adult Social Care Operations,Supplies and Services,Feb-22
Slough Borough Council,3570,Independent Supported Living And Disabilities Ltd,744.54,B298,Finance,Supplies and Services,Feb-22
Slough Borough Council,3570,Independent Supported Living And Disabilities Ltd,"3,811.63",B324,Finance,Supplies and Services,Feb-22
Slough Borough Council,3570,Independent Supported Living And Disabilities Ltd,"3,000.28",M42E,Adult Social Care Operations,Supplies and Services,Feb-22
Slough Borough Council,3570,Independent Supported Living And Disabilities Ltd,"3,044.16",M44D,Adult Social Care Operations,Supplies and Services,Feb-22
Slough Borough Council,3570,Independent Supported Living And Disabilities Ltd,"3,044.16",M44D,Adult Social Care Operations,Supplies and Services,Feb-22
Slough Borough Council,3570,Independent Supported Living And Disabilities Ltd,"4,212.00",M44E,Adult Social Care Operations,Supplies and Services,Feb-22
Slough Borough Council,3570,Independent Supported Living And Disabilities Ltd,"1,049.72",M44E,Adult Social Care Operations,Supplies and Services,Feb-22
Slough Borough Council,3570,Independent Supported Living And Disabilities Ltd,"1,440.00",M44E,Adult Social Care Operations,Supplies and Services,Feb-22
Slough Borough Council,3570,Independent Supported Living And Disabilities Ltd,"3,570.00",M44E,Adult Social Care Operations,Supplies and Services,Feb-22
Slough Borough Council,3570,Independent Supported Living And Disabilities Ltd,"4,212.00",M44E,Adult Social Care Operations,Supplies and Services,Feb-22
Slough Borough Council,3570,Independent Supported Living And Disabilities Ltd,"3,570.00",M44E,Adult Social Care Operations,Supplies and Services,Feb-22
Slough Borough Council,3570,Independent Supported Living And Disabilities Ltd,"1,362.06",M44F,Adult Social Care Operations,Supplies and Services,Feb-22
Slough Borough Council,3570,Independent Supported Living And Disabilities Ltd,"2,046.00",M44F,Adult Social Care Operations,Supplies and Services,Feb-22
Slough Borough Council,808214,Infocus Charity,"23,678.55",F462,DSG - High Needs Block,Supplies and Services,Feb-22
Slough Borough Council,807231,Initial Projects Limited,"1,047.50",D308,Major Infrastructure Projects,Supplies and Services,Feb-22
Slough Borough Council,807231,Initial Projects Limited,"1,047.50",D308,Major Infrastructure Projects,Supplies and Services,Feb-22
Slough Borough Council,807231,Initial Projects Limited,"1,047.50",D308,Major Infrastructure Projects,Supplies and Services,Feb-22
Slough Borough Council,807183,Intec For Business Ltd,"7,801.67",B349,People,Supplies and Services,Feb-22
Slough Borough Council,3172,Intelligent Transport Services,900.00,D509,Major Infrastructure Projects,Supplies and Services,Feb-22
Slough Borough Council,3172,Intelligent Transport Services,"1,200.00",P209,Capital,Capital Charges,Feb-22
Slough Borough Council,3172,Intelligent Transport Services,"7,088.00",D508,Major Infrastructure Projects,Supplies and Services,Feb-22
Slough Borough Council,3172,Intelligent Transport Services,550.00,D508,Major Infrastructure Projects,Supplies and Services,Feb-22
Slough Borough Council,3172,Intelligent Transport Services,800.00,D508,Major Infrastructure Projects,Supplies and Services,Feb-22
Slough Borough Council,3172,Intelligent Transport Services,550.00,D508,Major Infrastructure Projects,Supplies and Services,Feb-22
Slough Borough Council,3500,Iqra Slough Islamic Primary School,"103,316.62",E489,DSG - Schools,Supplies and Services,Feb-22
Slough Borough Council,998,Iron Mountain Uk Ltd,777.08,B282,Digital and Strategic IT,Supplies and Services,Feb-22
Slough Borough Council,2919,Islamic Shakhsiyah Foundation,"5,305.33",F909,DSG - Early Years,Supplies and Services,Feb-22
Slough Borough Council,1658,Islington Council,"3,605.00",A01D,Adult Social Care Operations,Indirect Employee Expenses,Feb-22
Slough Borough Council,807855,Isteni Property Holdings Ltd,"9,900.00",H205,Housing (People) Services,Supplies and Services,Feb-22
Slough Borough Council,807346,Jacaranda,"4,379.00",M44F,Adult Social Care Operations,Supplies and Services,Feb-22
Slough Borough Council,753,Jack In The Box Day Nursery,"10,369.81",F909,DSG - Early Years,Supplies and Services,Feb-22
Slough Borough Council,733,James Elliman  School,"34,621.32",E319,DSG - Schools,Supplies and Services,Feb-22
Slough Borough Council,805226,JD Surfacing & Civil Engineering Limited,"15,286.80",D880,Direct Service Organisation (DSO),Supplies and Services,Feb-22
Slough Borough Council,805226,JD Surfacing & Civil Engineering Limited,"1,855.00",D880,Direct Service Organisation (DSO),Supplies and Services,Feb-22
Slough Borough Council,805226,JD Surfacing & Civil Engineering Limited,"1,950.00",D880,Direct Service Organisation (DSO),Supplies and Services,Feb-22
Slough Borough Council,805226,JD Surfacing & Civil Engineering Limited,"7,560.00",D880,Direct Service Organisation (DSO),Supplies and Services,Feb-22
Slough Borough Council,805226,JD Surfacing & Civil Engineering Limited,"14,452.50",D880,Direct Service Organisation (DSO),Supplies and Services,Feb-22
Slough Borough Council,805226,JD Surfacing & Civil Engineering Limited,"1,855.00",D880,Direct Service Organisation (DSO),Supplies and Services,Feb-22
Slough Borough Council,805226,JD Surfacing & Civil Engineering Limited,"1,855.00",D880,Direct Service Organisation (DSO),Supplies and Services,Feb-22
Slough Borough Council,805226,JD Surfacing & Civil Engineering Limited,"13,947.80",D880,Direct Service Organisation (DSO),Supplies and Services,Feb-22
Slough Borough Council,805226,JD Surfacing & Civil Engineering Limited,"7,560.00",D880,Direct Service Organisation (DSO),Supplies and Services,Feb-22
Slough Borough Council,805226,JD Surfacing & Civil Engineering Limited,815.00,D880,Direct Service Organisation (DSO),Supplies and Services,Feb-22
Slough Borough Council,805226,JD Surfacing & Civil Engineering Limited,"7,560.00",D880,Direct Service Organisation (DSO),Supplies and Services,Feb-22
Slough Borough Council,807308,JLA Total Care Ltd,649.66,H205,Housing (People) Services,Supplies and Services,Feb-22
Slough Borough Council,807308,JLA Total Care Ltd,649.66,H205,Housing (People) Services,Supplies and Services,Feb-22
Slough Borough Council,807308,JLA Total Care Ltd,675.65,H205,Housing (People) Services,Supplies and Services,Feb-22
Slough Borough Council,807308,JLA Total Care Ltd,675.65,H205,Housing (People) Services,Supplies and Services,Feb-22
Slough Borough Council,807453,John F Hunt Regeneration Ltd,"15,149.52",P405,Capital,Capital Charges,Feb-22
Slough Borough Council,956,John Murphy & Company Ltd,"6,120.00",H206,Housing (People) Services,Premises,Feb-22
Slough Borough Council,2200,Joshua Pilmore,"1,261.00",C322,Communities and Leisure,Supplies and Services,Feb-22
Slough Borough Council,807339,Joymac Care Ltd,"1,325.78",B324,Finance,Supplies and Services,Feb-22
Slough Borough Council,804848,JPH Social Work LTD,"1,050.00",B409,People,Supplies and Services,Feb-22
Slough Borough Council,201,Kamal Enterprises Ltd,573.00,A04C,Adult Social Care Commissioning,Supplies and Services,Feb-22
Slough Borough Council,803815,Kathys Childcare,"1,900.00",F909,DSG - Early Years,Supplies and Services,Feb-22
Slough Borough Council,803815,Kathys Childcare,"1,900.00",F909,DSG - Early Years,Supplies and Services,Feb-22
Slough Borough Council,2620,Kcare Nursing Agency Ltd,"1,387.75",M44C,Adult Social Care Operations,Supplies and Services,Feb-22
Slough Borough Council,2620,Kcare Nursing Agency Ltd,"1,366.40",M44C,Adult Social Care Operations,Supplies and Services,Feb-22
Slough Borough Council,2620,Kcare Nursing Agency Ltd,"2,397.61",M44C,Adult Social Care Operations,Supplies and Services,Feb-22
Slough Borough Council,2620,Kcare Nursing Agency Ltd,"1,266.06",M44C,Adult Social Care Operations,Supplies and Services,Feb-22
Slough Borough Council,2620,Kcare Nursing Agency Ltd,"2,507.56",M44C,Adult Social Care Operations,Supplies and Services,Feb-22
Slough Borough Council,2620,Kcare Nursing Agency Ltd,597.80,M44C,Adult Social Care Operations,Supplies and Services,Feb-22
Slough Borough Council,2620,Kcare Nursing Agency Ltd,896.70,M44C,Adult Social Care Operations,Supplies and Services,Feb-22
Slough Borough Council,2620,Kcare Nursing Agency Ltd,"1,942.85",M44C,Adult Social Care Operations,Supplies and Services,Feb-22
Slough Borough Council,2620,Kcare Nursing Agency Ltd,"1,067.70",M44D,Adult Social Care Operations,Supplies and Services,Feb-22
Slough Borough Council,2620,Kcare Nursing Agency Ltd,"1,067.50",M44D,Adult Social Care Operations,Supplies and Services,Feb-22
Slough Borough Council,2620,Kcare Nursing Agency Ltd,"1,604.45",M44D,Adult Social Care Operations,Supplies and Services,Feb-22
Slough Borough Council,2620,Kcare Nursing Agency Ltd,"1,415.51",M44D,Adult Social Care Operations,Supplies and Services,Feb-22
Slough Borough Council,2620,Kcare Nursing Agency Ltd,985.30,M48C,Adult Social Care Operations,Supplies and Services,Feb-22
Slough Borough Council,804887,KCare Nursing Agency Ltd Supported House Living,"2,926.00",M42F,Adult Social Care Operations,Supplies and Services,Feb-22
Slough Borough Council,808160,Kedleston Schools London Ltd,"19,265.00",F552,DSG - High Needs Block,Supplies and Services,Feb-22
Slough Borough Council,808160,Kedleston Schools London Ltd,"19,265.00",F552,DSG - High Needs Block,Supplies and Services,Feb-22
Slough Borough Council,808146,Kents Hill Care Home,"3,764.29",M18C,Adult Social Care Operations,Supplies and Services,Feb-22
Slough Borough Council,808146,Kents Hill Care Home,"3,642.86",M18C,Adult Social Care Operations,Supplies and Services,Feb-22
Slough Borough Council,808146,Kents Hill Care Home,"3,764.29",M18C,Adult Social Care Operations,Supplies and Services,Feb-22
Slough Borough Council,808146,Kents Hill Care Home,"3,400.00",M18C,Adult Social Care Operations,Supplies and Services,Feb-22
Slough Borough Council,808146,Kents Hill Care Home,"3,764.29",M18C,Adult Social Care Operations,Supplies and Services,Feb-22
Slough Borough Council,807742,Khalsa Primary School,"13,009.33",E529,DSG - Schools,Supplies and Services,Feb-22
Slough Borough Council,803916,Kharis Solutions,"1,535.62",B298,Finance,Supplies and Services,Feb-22
Slough Borough Council,803916,Kharis Solutions,"2,817.29",B324,Finance,Supplies and Services,Feb-22
Slough Borough Council,803916,Kharis Solutions,"1,904.00",M44C,Adult Social Care Operations,Supplies and Services,Feb-22
Slough Borough Council,803916,Kharis Solutions,"2,278.00",M44C,Adult Social Care Operations,Supplies and Services,Feb-22
Slough Borough Council,803916,Kharis Solutions,"1,428.00",M44C,Adult Social Care Operations,Supplies and Services,Feb-22
Slough Borough Council,803916,Kharis Solutions,"2,142.00",M44D,Adult Social Care Operations,Supplies and Services,Feb-22
Slough Borough Council,803916,Kharis Solutions,"2,210.00",M48C,Adult Social Care Operations,Supplies and Services,Feb-22
Slough Borough Council,664,Langley Grammar School,"91,594.33",E329,DSG - Schools,Supplies and Services,Feb-22
Slough Borough Council,664,Langley Grammar School,"1,680.00",B297,Finance,Government Grants,Feb-22
Slough Borough Council,805463,Langley Hall Arts Limited,"1,920.00",F253,Schools,Agency Staff,Feb-22
Slough Borough Council,1699,Langley Hall Primary Academy,"2,416.67",E739,DSG - Schools,Supplies and Services,Feb-22
Slough Borough Council,3001,Langley Haven Care Homes Ltd,"6,628.92",B324,Finance,Supplies and Services,Feb-22
Slough Borough Council,3001,Langley Haven Care Homes Ltd,"3,255.84",M25C,Adult Social Care Operations,Supplies and Services,Feb-22
Slough Borough Council,3001,Langley Haven Care Homes Ltd,"3,255.84",M25C,Adult Social Care Operations,Supplies and Services,Feb-22
Slough Borough Council,3001,Langley Haven Care Homes Ltd,"3,360.00",M26E,Adult Social Care Operations,Supplies and Services,Feb-22
Slough Borough Council,3001,Langley Haven Care Homes Ltd,"3,360.00",M26E,Adult Social Care Operations,Supplies and Services,Feb-22
Slough Borough Council,3001,Langley Haven Care Homes Ltd,"3,255.84",M27C,Adult Social Care Operations,Supplies and Services,Feb-22
Slough Borough Council,3001,Langley Haven Care Homes Ltd,"3,255.84",M27C,Adult Social Care Operations,Supplies and Services,Feb-22
Slough Borough Council,3001,Langley Haven Care Homes Ltd,"3,255.84",M27C,Adult Social Care Operations,Supplies and Services,Feb-22
Slough Borough Council,3001,Langley Haven Care Homes Ltd,"3,255.84",M27C,Adult Social Care Operations,Supplies and Services,Feb-22
Slough Borough Council,3001,Langley Haven Care Homes Ltd,"3,255.84",M27C,Adult Social Care Operations,Supplies and Services,Feb-22
Slough Borough Council,3001,Langley Haven Care Homes Ltd,"3,255.84",M27C,Adult Social Care Operations,Supplies and Services,Feb-22
Slough Borough Council,3001,Langley Haven Care Homes Ltd,"3,255.84",M27F,Adult Social Care Operations,Supplies and Services,Feb-22
Slough Borough Council,3001,Langley Haven Care Homes Ltd,"3,255.84",M27F,Adult Social Care Operations,Supplies and Services,Feb-22
Slough Borough Council,3001,Langley Haven Care Homes Ltd,"3,255.84",M27F,Adult Social Care Operations,Supplies and Services,Feb-22
Slough Borough Council,3001,Langley Haven Care Homes Ltd,"3,600.00",M27F,Adult Social Care Operations,Supplies and Services,Feb-22
Slough Borough Council,3001,Langley Haven Care Homes Ltd,"3,255.84",M29C,Adult Social Care Operations,Supplies and Services,Feb-22
Slough Borough Council,803686,Lascelles Park Nursery,"14,207.72",F909,DSG - Early Years,Supplies and Services,Feb-22
Slough Borough Council,1077,Lavat Consulting Limited,"1,620.00",B015,Finance,Supplies and Services,Feb-22
Slough Borough Council,3482,Leonard Cheshire Disability,"5,608.87",M25D,Adult Social Care Operations,Supplies and Services,Feb-22
Slough Borough Council,365,Lexisnexis Butterworths,915.00,B240,Governance,Supplies and Services,Feb-22
Slough Borough Council,301,Liberata Uk Limited,"10,648.16",B290,Finance & Commercial,Premises,Feb-22
Slough Borough Council,803392,Liftshare.com LTD,"1,837.50",D508,Major Infrastructure Projects,Supplies and Services,Feb-22
Slough Borough Council,804692,Little Diamonds Pre School,"15,000.00",F909,DSG - Early Years,Supplies and Services,Feb-22
Slough Borough Council,3791,Littledown Pru,"17,100.00",E807,DSG - High Needs Block,Supplies and Services,Feb-22
Slough Borough Council,667,Littledown School,"62,430.45",E807,DSG - High Needs Block,Supplies and Services,Feb-22
Slough Borough Council,804544,London Borough of Harrow,"73,114.32",B096,Governance,Indirect Employee Expenses,Feb-22
Slough Borough Council,804544,London Borough of Harrow,"102,084.47",B096,Governance,Indirect Employee Expenses,Feb-22
Slough Borough Council,804585,Longlea Ltd,"3,600.00",M18C,Adult Social Care Operations,Supplies and Services,Feb-22
Slough Borough Council,2302,Look Ahead Care And Support,"11,834.68",M42F,Adult Social Care Operations,Supplies and Services,Feb-22
Slough Borough Council,2302,Look Ahead Care And Support,"3,131.62",M44F,Adult Social Care Operations,Supplies and Services,Feb-22
Slough Borough Council,2302,Look Ahead Care And Support,"3,030.60",M44F,Adult Social Care Operations,Supplies and Services,Feb-22
Slough Borough Council,2302,Look Ahead Care And Support,"3,030.60",M44F,Adult Social Care Operations,Supplies and Services,Feb-22
Slough Borough Council,2302,Look Ahead Care And Support,"3,030.60",M44F,Adult Social Care Operations,Supplies and Services,Feb-22
Slough Borough Council,2302,Look Ahead Care And Support,505.10,M44F,Adult Social Care Operations,Supplies and Services,Feb-22
Slough Borough Council,2302,Look Ahead Care And Support,"3,131.62",M44F,Adult Social Care Operations,Supplies and Services,Feb-22
Slough Borough Council,2302,Look Ahead Care And Support,"3,030.60",M44F,Adult Social Care Operations,Supplies and Services,Feb-22
Slough Borough Council,2302,Look Ahead Care And Support,"2,161.54",H216,Housing (People) Services,Supplies and Services,Feb-22
Slough Borough Council,2302,Look Ahead Care And Support,"2,166.94",H216,Housing (People) Services,Supplies and Services,Feb-22
Slough Borough Council,2302,Look Ahead Care And Support,"2,239.17",H216,Housing (People) Services,Supplies and Services,Feb-22
Slough Borough Council,2302,Look Ahead Care And Support,"11,511.16",H211,Adult Social Care Operations,Supplies and Services,Feb-22
Slough Borough Council,2302,Look Ahead Care And Support,816.68,H211,Adult Social Care Operations,Supplies and Services,Feb-22
Slough Borough Council,2302,Look Ahead Care And Support,"1,633.80",H211,Adult Social Care Operations,Supplies and Services,Feb-22
Slough Borough Council,3910,Lookahead Care & Support,"2,166.94",H216,Housing (People) Services,Supplies and Services,Feb-22
Slough Borough Council,807840,Lumen,821.98,B282,Digital and Strategic IT,Supplies and Services,Feb-22
Slough Borough Council,807840,Lumen,"4,109.90",B282,Digital and Strategic IT,Supplies and Services,Feb-22
Slough Borough Council,807840,Lumen,"4,109.90",B282,Digital and Strategic IT,Supplies and Services,Feb-22
Slough Borough Council,1195,Lynch Hill (Foundation Primary) School,"5,473.93",E749,DSG - Schools,Supplies and Services,Feb-22
Slough Borough Council,1771,Lynch Hill Academy,"11,125.00",E359,DSG - Schools,Supplies and Services,Feb-22
Slough Borough Council,3424,M D Homes,"4,400.00",M15F,Adult Social Care Operations,Supplies and Services,Feb-22
Slough Borough Council,807217,Macadamia Support Limited,"6,931.20",M42E,Adult Social Care Operations,Supplies and Services,Feb-22
Slough Borough Council,807217,Macadamia Support Limited,"6,713.00",M42E,Adult Social Care Operations,Supplies and Services,Feb-22
Slough Borough Council,807217,Macadamia Support Limited,"3,973.20",M42E,Adult Social Care Operations,Supplies and Services,Feb-22
Slough Borough Council,807217,Macadamia Support Limited,"7,308.00",M42E,Adult Social Care Operations,Supplies and Services,Feb-22
Slough Borough Council,807217,Macadamia Support Limited,"3,589.12",M42E,Adult Social Care Operations,Supplies and Services,Feb-22
Slough Borough Council,807217,Macadamia Support Limited,"3,591.56",M44C,Adult Social Care Operations,Supplies and Services,Feb-22
Slough Borough Council,807217,Macadamia Support Limited,"5,523.00",M44D,Adult Social Care Operations,Supplies and Services,Feb-22
Slough Borough Council,529,Marish Primary School,"80,673.58",E759,DSG - Schools,Supplies and Services,Feb-22
Slough Borough Council,807774,Marsh Ltd,840.00,B018,Finance,Supplies and Services,Feb-22
Slough Borough Council,807684,Maverick Care  Ltd T/A Christies Care Windsor & Maidenhead,"1,988.68",B324,Finance,Supplies and Services,Feb-22
Slough Borough Council,805218,Merit Thornton Planning and Community Consultants Ltd,"5,738.17",D012,Major Infrastructure Projects,Supplies and Services,Feb-22
Slough Borough Council,1496,Mighty Acorns Day Nursery Ltd,"13,646.53",F909,DSG - Early Years,Supplies and Services,Feb-22
Slough Borough Council,1879,Mj Events Support Limited,"10,976.00",B310,Finance,Supplies and Services,Feb-22
Slough Borough Council,805121,MMCG (2) Limited,"6,356.60",B298,Finance,Supplies and Services,Feb-22
Slough Borough Council,805121,MMCG (2) Limited,"11,269.16",B324,Finance,Supplies and Services,Feb-22
Slough Borough Council,805121,MMCG (2) Limited,"3,557.25",M15D,Adult Social Care Operations,Supplies and Services,Feb-22
Slough Borough Council,805121,MMCG (2) Limited,"3,557.25",M15F,Adult Social Care Operations,Supplies and Services,Feb-22
Slough Borough Council,805121,MMCG (2) Limited,"1,950.75",M17C,Adult Social Care Operations,Supplies and Services,Feb-22
Slough Borough Council,805121,MMCG (2) Limited,"3,557.25",M17C,Adult Social Care Operations,Supplies and Services,Feb-22
Slough Borough Council,805121,MMCG (2) Limited,"3,557.25",M17C,Adult Social Care Operations,Supplies and Services,Feb-22
Slough Borough Council,805121,MMCG (2) Limited,"4,031.55",M17C,Adult Social Care Operations,Supplies and Services,Feb-22
Slough Borough Council,805121,MMCG (2) Limited,"4,387.30",M17C,Adult Social Care Operations,Supplies and Services,Feb-22
Slough Borough Council,805121,MMCG (2) Limited,"4,031.55",M17C,Adult Social Care Operations,Supplies and Services,Feb-22
Slough Borough Council,805121,MMCG (2) Limited,"3,557.25",M18C,Adult Social Care Operations,Supplies and Services,Feb-22
Slough Borough Council,805121,MMCG (2) Limited,"3,557.25",M18C,Adult Social Care Operations,Supplies and Services,Feb-22
Slough Borough Council,805121,MMCG (2) Limited,"3,557.25",M18C,Adult Social Care Operations,Supplies and Services,Feb-22
Slough Borough Council,805121,MMCG (2) Limited,"3,557.25",M18C,Adult Social Care Operations,Supplies and Services,Feb-22
Slough Borough Council,805121,MMCG (2) Limited,"4,387.30",M18C,Adult Social Care Operations,Supplies and Services,Feb-22
Slough Borough Council,805121,MMCG (2) Limited,"4,031.55",M18C,Adult Social Care Operations,Supplies and Services,Feb-22
Slough Borough Council,805121,MMCG (2) Limited,"3,557.25",M18C,Adult Social Care Operations,Supplies and Services,Feb-22
Slough Borough Council,805121,MMCG (2) Limited,"3,557.25",M25C,Adult Social Care Operations,Supplies and Services,Feb-22
Slough Borough Council,805121,MMCG (2) Limited,"3,557.25",M25C,Adult Social Care Operations,Supplies and Services,Feb-22
Slough Borough Council,805121,MMCG (2) Limited,"3,557.25",M25C,Adult Social Care Operations,Supplies and Services,Feb-22
Slough Borough Council,805121,MMCG (2) Limited,"3,557.25",M27C,Adult Social Care Operations,Supplies and Services,Feb-22
Slough Borough Council,805121,MMCG (2) Limited,"3,557.25",M27C,Adult Social Care Operations,Supplies and Services,Feb-22
Slough Borough Council,805121,MMCG (2) Limited,"3,557.25",M27C,Adult Social Care Operations,Supplies and Services,Feb-22
Slough Borough Council,805121,MMCG (2) Limited,"3,557.25",M27C,Adult Social Care Operations,Supplies and Services,Feb-22
Slough Borough Council,805121,MMCG (2) Limited,"3,557.25",M27C,Adult Social Care Operations,Supplies and Services,Feb-22
Slough Borough Council,805121,MMCG (2) Limited,"3,557.25",M27C,Adult Social Care Operations,Supplies and Services,Feb-22
Slough Borough Council,805121,MMCG (2) Limited,"3,442.50",M28C,Adult Social Care Operations,Supplies and Services,Feb-22
Slough Borough Council,805121,MMCG (2) Limited,"3,557.25",M28C,Adult Social Care Operations,Supplies and Services,Feb-22
Slough Borough Council,805121,MMCG (2) Limited,"3,557.25",M28C,Adult Social Care Operations,Supplies and Services,Feb-22
Slough Borough Council,805121,MMCG (2) Limited,"3,557.25",M28C,Adult Social Care Operations,Supplies and Services,Feb-22
Slough Borough Council,805121,MMCG (2) Limited,"1,491.75",M28C,Adult Social Care Operations,Supplies and Services,Feb-22
Slough Borough Council,1786,Mobius Networks Ltd,618.10,D500,Major Infrastructure Projects,Premises,Feb-22
Slough Borough Council,2645,Modus Care Ltd,"9,758.80",M26E,Adult Social Care Operations,Supplies and Services,Feb-22
Slough Borough Council,2645,Modus Care Ltd,"10,455.86",M26E,Adult Social Care Operations,Supplies and Services,Feb-22
Slough Borough Council,2115,Montagu Evans Llp,"19,000.00",B086,Place Strategy & Infrastructure,Capital Charges,Feb-22
Slough Borough Council,2115,Montagu Evans Llp,"19,000.00",B086,Place Strategy & Infrastructure,Capital Charges,Feb-22
Slough Borough Council,2115,Montagu Evans Llp,"-19,000.00",B086,Place Strategy & Infrastructure,Capital Charges,Feb-22
Slough Borough Council,2115,Montagu Evans Llp,"-19,000.00",B086,Place Strategy & Infrastructure,Capital Charges,Feb-22
Slough Borough Council,2115,Montagu Evans Llp,"9,556.00",B086,Place Strategy & Infrastructure,Capital Charges,Feb-22
Slough Borough Council,2115,Montagu Evans Llp,"11,202.00",B086,Place Strategy & Infrastructure,Capital Charges,Feb-22
Slough Borough Council,1140,Montem Guesthouse,"1,550.00",H205,Housing (People) Services,Supplies and Services,Feb-22
Slough Borough Council,1140,Montem Guesthouse,"1,705.00",H205,Housing (People) Services,Supplies and Services,Feb-22
Slough Borough Council,1140,Montem Guesthouse,"1,395.00",H205,Housing (People) Services,Supplies and Services,Feb-22
Slough Borough Council,1140,Montem Guesthouse,"1,550.00",H205,Housing (People) Services,Supplies and Services,Feb-22
Slough Borough Council,1140,Montem Guesthouse,"1,550.00",H205,Housing (People) Services,Supplies and Services,Feb-22
Slough Borough Council,1140,Montem Guesthouse,"1,550.00",H205,Housing (People) Services,Supplies and Services,Feb-22
Slough Borough Council,1140,Montem Guesthouse,"1,240.00",H205,Housing (People) Services,Supplies and Services,Feb-22
Slough Borough Council,1140,Montem Guesthouse,"1,085.00",H205,Housing (People) Services,Supplies and Services,Feb-22
Slough Borough Council,1140,Montem Guesthouse,"1,550.00",H205,Housing (People) Services,Supplies and Services,Feb-22
Slough Borough Council,1140,Montem Guesthouse,"1,395.00",H205,Housing (People) Services,Supplies and Services,Feb-22
Slough Borough Council,1140,Montem Guesthouse,"1,395.00",H205,Housing (People) Services,Supplies and Services,Feb-22
Slough Borough Council,1140,Montem Guesthouse,"1,395.00",H205,Housing (People) Services,Supplies and Services,Feb-22
Slough Borough Council,1140,Montem Guesthouse,"1,395.00",H205,Housing (People) Services,Supplies and Services,Feb-22
Slough Borough Council,1140,Montem Guesthouse,"1,395.00",H205,Housing (People) Services,Supplies and Services,Feb-22
Slough Borough Council,1140,Montem Guesthouse,675.00,H205,Housing (People) Services,Supplies and Services,Feb-22
Slough Borough Council,1140,Montem Guesthouse,"1,395.00",H205,Housing (People) Services,Supplies and Services,Feb-22
Slough Borough Council,1140,Montem Guesthouse,"1,395.00",H205,Housing (People) Services,Supplies and Services,Feb-22
Slough Borough Council,1140,Montem Guesthouse,"1,395.00",H205,Housing (People) Services,Supplies and Services,Feb-22
Slough Borough Council,1140,Montem Guesthouse,"1,550.00",H205,Housing (People) Services,Supplies and Services,Feb-22
Slough Borough Council,1140,Montem Guesthouse,"1,395.00",H205,Housing (People) Services,Supplies and Services,Feb-22
Slough Borough Council,1140,Montem Guesthouse,945.00,H205,Housing (People) Services,Supplies and Services,Feb-22
Slough Borough Council,1140,Montem Guesthouse,630.00,H205,Housing (People) Services,Supplies and Services,Feb-22
Slough Borough Council,1140,Montem Guesthouse,"1,395.00",H205,Housing (People) Services,Supplies and Services,Feb-22
Slough Borough Council,1140,Montem Guesthouse,"1,395.00",H205,Housing (People) Services,Supplies and Services,Feb-22
Slough Borough Council,1140,Montem Guesthouse,"1,550.00",H205,Housing (People) Services,Supplies and Services,Feb-22
Slough Borough Council,1140,Montem Guesthouse,"1,705.00",H205,Housing (People) Services,Supplies and Services,Feb-22
Slough Borough Council,1140,Montem Guesthouse,"1,760.00",H205,Housing (People) Services,Supplies and Services,Feb-22
Slough Borough Council,3302,Montem Primary School,"20,527.84",E339,DSG - Schools,Supplies and Services,Feb-22
Slough Borough Council,807432,MPD FM Limited,"6,396.36",A07M,Mental Health Services,Agency Staff,Feb-22
Slough Borough Council,807432,MPD FM Limited,"7,624.80",B086,Place Strategy & Infrastructure,Premises,Feb-22
Slough Borough Council,807432,MPD FM Limited,"7,878.96",B086,Place Strategy & Infrastructure,Premises,Feb-22
Slough Borough Council,807432,MPD FM Limited,"8,387.28",B086,Place Strategy & Infrastructure,Premises,Feb-22
Slough Borough Council,807432,MPD FM Limited,"6,295.76",H216,Housing (People) Services,Supplies and Services,Feb-22
Slough Borough Council,804936,Ms. Marinela Caldarus,"3,578.00",F382,Children & Families,Supplies and Services,Feb-22
Slough Borough Council,806858,MUDDY BOOTS DAY NURSERY LTD,"6,798.74",F909,DSG - Early Years,Supplies and Services,Feb-22
Slough Borough Council,805369,NAS Services Limited,"7,625.48",M42E,Adult Social Care Operations,Supplies and Services,Feb-22
Slough Borough Council,1945,Neem Tree Care Ltd,"3,604.68",M17C,Adult Social Care Operations,Supplies and Services,Feb-22
Slough Borough Council,808159,New College Worcester,"53,294.00",F462,DSG - High Needs Block,Supplies and Services,Feb-22
Slough Borough Council,1864,Noahs Ark Environmental Services Ltd,"4,725.00",H253,Neighbourhood Services,Supplies and Services,Feb-22
Slough Borough Council,1864,Noahs Ark Environmental Services Ltd,"2,676.16",H253,Neighbourhood Services,External Receipts,Feb-22
Slough Borough Council,1864,Noahs Ark Environmental Services Ltd,-637.50,H253,Neighbourhood Services,External Receipts,Feb-22
Slough Borough Council,1864,Noahs Ark Environmental Services Ltd,"2,584.66",H253,Neighbourhood Services,Supplies and Services,Feb-22
Slough Borough Council,1864,Noahs Ark Environmental Services Ltd,"2,631.16",H253,Neighbourhood Services,Supplies and Services,Feb-22
Slough Borough Council,1864,Noahs Ark Environmental Services Ltd,"2,761.73",H253,Neighbourhood Services,Supplies and Services,Feb-22
Slough Borough Council,1864,Noahs Ark Environmental Services Ltd,"2,583.16",H253,Neighbourhood Services,Supplies and Services,Feb-22
Slough Borough Council,807860,Nominet UK,765.94,B282,Digital and Strategic IT,Supplies and Services,Feb-22
Slough Borough Council,803985,Normans Musical Instruments,900.00,F253,Schools,Supplies and Services,Feb-22
Slough Borough Council,3717,Norwood Schools Limited,"4,040.28",M26E,Adult Social Care Operations,Supplies and Services,Feb-22
Slough Borough Council,3717,Norwood Schools Limited,"4,040.28",M26E,Adult Social Care Operations,Supplies and Services,Feb-22
Slough Borough Council,3717,Norwood Schools Limited,"4,040.28",M26E,Adult Social Care Operations,Supplies and Services,Feb-22
Slough Borough Council,3717,Norwood Schools Limited,-608.80,M26E,Adult Social Care Operations,External Receipts,Feb-22
Slough Borough Council,3717,Norwood Schools Limited,-608.80,M26E,Adult Social Care Operations,External Receipts,Feb-22
Slough Borough Council,3717,Norwood Schools Limited,-608.80,M26E,Adult Social Care Operations,External Receipts,Feb-22
Slough Borough Council,803238,Oasis Care and Training Agency,532.90,A07R,Adult Social Care Operations,Supplies and Services,Feb-22
Slough Borough Council,803238,Oasis Care and Training Agency,"1,443.96",M42C,Adult Social Care Operations,Supplies and Services,Feb-22
Slough Borough Council,803238,Oasis Care and Training Agency,"2,681.64",M44C,Adult Social Care Operations,Supplies and Services,Feb-22
Slough Borough Council,803238,Oasis Care and Training Agency,"1,014.20",M44C,Adult Social Care Operations,Supplies and Services,Feb-22
Slough Borough Council,803238,Oasis Care and Training Agency,962.64,M44C,Adult Social Care Operations,Supplies and Services,Feb-22
Slough Borough Council,803238,Oasis Care and Training Agency,"1,203.32",M44C,Adult Social Care Operations,Supplies and Services,Feb-22
Slough Borough Council,803238,Oasis Care and Training Agency,"2,406.60",M44C,Adult Social Care Operations,Supplies and Services,Feb-22
Slough Borough Council,803238,Oasis Care and Training Agency,"2,784.80",M44C,Adult Social Care Operations,Supplies and Services,Feb-22
Slough Borough Council,803238,Oasis Care and Training Agency,"1,203.32",M44C,Adult Social Care Operations,Supplies and Services,Feb-22
Slough Borough Council,803238,Oasis Care and Training Agency,"2,165.96",M44C,Adult Social Care Operations,Supplies and Services,Feb-22
Slough Borough Council,803238,Oasis Care and Training Agency,601.64,M44C,Adult Social Care Operations,Supplies and Services,Feb-22
Slough Borough Council,803238,Oasis Care and Training Agency,"2,165.96",M44C,Adult Social Care Operations,Supplies and Services,Feb-22
Slough Borough Council,803238,Oasis Care and Training Agency,601.64,M44C,Adult Social Care Operations,Supplies and Services,Feb-22
Slough Borough Council,803238,Oasis Care and Training Agency,"1,431.07",M44C,Adult Social Care Operations,Supplies and Services,Feb-22
Slough Borough Council,803238,Oasis Care and Training Agency,730.58,M44C,Adult Social Care Operations,Supplies and Services,Feb-22
Slough Borough Council,803238,Oasis Care and Training Agency,"1,203.32",M44C,Adult Social Care Operations,Supplies and Services,Feb-22
Slough Borough Council,803238,Oasis Care and Training Agency,"1,203.32",M44C,Adult Social Care Operations,Supplies and Services,Feb-22
Slough Borough Council,803238,Oasis Care and Training Agency,"1,181.83",M44C,Adult Social Care Operations,Supplies and Services,Feb-22
Slough Borough Council,803238,Oasis Care and Training Agency,"1,323.64",M44D,Adult Social Care Operations,Supplies and Services,Feb-22
Slough Borough Council,803238,Oasis Care and Training Agency,"1,985.45",M44D,Adult Social Care Operations,Supplies and Services,Feb-22
Slough Borough Council,803238,Oasis Care and Training Agency,979.84,M44D,Adult Social Care Operations,Supplies and Services,Feb-22
Slough Borough Council,803238,Oasis Care and Training Agency,979.84,M44D,Adult Social Care Operations,Supplies and Services,Feb-22
Slough Borough Council,803238,Oasis Care and Training Agency,842.32,M44D,Adult Social Care Operations,Supplies and Services,Feb-22
Slough Borough Council,803238,Oasis Care and Training Agency,670.40,M44D,Adult Social Care Operations,Supplies and Services,Feb-22
Slough Borough Council,803238,Oasis Care and Training Agency,"1,340.84",M44D,Adult Social Care Operations,Supplies and Services,Feb-22
Slough Borough Council,803238,Oasis Care and Training Agency,"2,165.96",M44D,Adult Social Care Operations,Supplies and Services,Feb-22
Slough Borough Council,803238,Oasis Care and Training Agency,842.32,M44D,Adult Social Care Operations,Supplies and Services,Feb-22
Slough Borough Council,803238,Oasis Care and Training Agency,"1,349.42",M44D,Adult Social Care Operations,Supplies and Services,Feb-22
Slough Borough Council,803238,Oasis Care and Training Agency,"4,331.88",M44F,Adult Social Care Operations,Supplies and Services,Feb-22
Slough Borough Council,803238,Oasis Care and Training Agency,"1,237.68",M44F,Adult Social Care Operations,Supplies and Services,Feb-22
Slough Borough Council,803238,Oasis Care and Training Agency,588.75,M45C,Adult Social Care Operations,Supplies and Services,Feb-22
Slough Borough Council,803238,Oasis Care and Training Agency,"1,315.02",M45C,Adult Social Care Operations,Supplies and Services,Feb-22
Slough Borough Council,803238,Oasis Care and Training Agency,"1,443.96",M45C,Adult Social Care Operations,Supplies and Services,Feb-22
Slough Borough Council,803238,Oasis Care and Training Agency,"9,576.00",M48C,Adult Social Care Operations,Supplies and Services,Feb-22
Slough Borough Council,1767,Olive Tree Montessori Ltd,"19,008.64",F909,DSG - Early Years,Supplies and Services,Feb-22
Slough Borough Council,804687,Optalis Limited,"5,642.13",M42E,Adult Social Care Operations,Supplies and Services,Feb-22
Slough Borough Council,804687,Optalis Limited,"4,807.26",M42E,Adult Social Care Operations,Supplies and Services,Feb-22
Slough Borough Council,803490,Optimum Specialised Home Limited,"3,314.46",B324,Finance,Supplies and Services,Feb-22
Slough Borough Council,803490,Optimum Specialised Home Limited,"1,325.78",B324,Finance,Supplies and Services,Feb-22
Slough Borough Council,803490,Optimum Specialised Home Limited,"2,100.00",M26E,Adult Social Care Operations,Supplies and Services,Feb-22
Slough Borough Council,803490,Optimum Specialised Home Limited,"2,100.00",M26E,Adult Social Care Operations,Supplies and Services,Feb-22
Slough Borough Council,803490,Optimum Specialised Home Limited,"2,100.00",M26E,Adult Social Care Operations,Supplies and Services,Feb-22
Slough Borough Council,803490,Optimum Specialised Home Limited,"2,100.00",M26E,Adult Social Care Operations,Supplies and Services,Feb-22
Slough Borough Council,803490,Optimum Specialised Home Limited,"1,795.00",M26E,Adult Social Care Operations,Supplies and Services,Feb-22
Slough Borough Council,803490,Optimum Specialised Home Limited,"1,795.00",M26E,Adult Social Care Operations,Supplies and Services,Feb-22
Slough Borough Council,803490,Optimum Specialised Home Limited,"1,795.00",M26E,Adult Social Care Operations,Supplies and Services,Feb-22
Slough Borough Council,803490,Optimum Specialised Home Limited,"1,795.00",M26E,Adult Social Care Operations,Supplies and Services,Feb-22
Slough Borough Council,1629,Opus Energy Limited,"10,795.77",K526,Building Management,Premises,Feb-22
Slough Borough Council,1629,Opus Energy Limited,"19,406.67",K526,Building Management,Premises,Feb-22
Slough Borough Council,803960,Orchard Hill College,"13,179.44",F558,DSG - High Needs Block,Supplies and Services,Feb-22
Slough Borough Council,803960,Orchard Hill College,"16,372.10",F558,DSG - High Needs Block,Supplies and Services,Feb-22
Slough Borough Council,803960,Orchard Hill College,"16,468.56",F558,DSG - High Needs Block,Supplies and Services,Feb-22
Slough Borough Council,803960,Orchard Hill College,"13,796.31",F558,DSG - High Needs Block,Supplies and Services,Feb-22
Slough Borough Council,803960,Orchard Hill College,"13,533.33",F558,DSG - High Needs Block,Supplies and Services,Feb-22
Slough Borough Council,807272,Origin Transport Consultants Ltd,"1,480.40",D224,Planning and Transport,Supplies and Services,Feb-22
Slough Borough Council,807272,Origin Transport Consultants Ltd,"1,097.55",D015,Major Infrastructure Projects,Supplies and Services,Feb-22
Slough Borough Council,805011,Osborne Property Services Limited,"137,349.91",J607,HDC Housing Development,Premises,Feb-22
Slough Borough Council,805011,Osborne Property Services Limited,"102,753.84",J607,HDC Housing Development,Supplies and Services,Feb-22
Slough Borough Council,805011,Osborne Property Services Limited,"25,844.08",P409,Capital,Capital Charges,Feb-22
Slough Borough Council,805011,Osborne Property Services Limited,"96,111.90",J607,HDC Housing Development,Supplies and Services,Feb-22
Slough Borough Council,805011,Osborne Property Services Limited,"11,832.62",P431,Capital,Supplies and Services,Feb-22
Slough Borough Council,806996,OSG Architecture Limited,"20,000.00",B086,Place Strategy & Infrastructure,Capital Charges,Feb-22
Slough Borough Council,3371,Our Lady Of Peace Catholic Primary and Nursery School,"27,764.93",E349,DSG - Schools,Supplies and Services,Feb-22
Slough Borough Council,803538,Oxford City Council,"12,311.00",B015,Finance,Supplies and Services,Feb-22
Slough Borough Council,294,Oxford Computer Consultants Ltd,"5,895.00",B277,Digital and Strategic IT,Supplies and Services,Feb-22
Slough Borough Council,680,Oxford House Community Care,630.10,A07R,Adult Social Care Operations,Supplies and Services,Feb-22
Slough Borough Council,680,Oxford House Community Care,977.38,M44C,Adult Social Care Operations,Supplies and Services,Feb-22
Slough Borough Council,680,Oxford House Community Care,721.60,M44C,Adult Social Care Operations,Supplies and Services,Feb-22
Slough Borough Council,680,Oxford House Community Care,758.00,M44C,Adult Social Care Operations,Supplies and Services,Feb-22
Slough Borough Council,680,Oxford House Community Care,"1,223.79",M44C,Adult Social Care Operations,Supplies and Services,Feb-22
Slough Borough Council,680,Oxford House Community Care,"2,139.71",M44C,Adult Social Care Operations,Supplies and Services,Feb-22
Slough Borough Council,680,Oxford House Community Care,"1,052.81",M44C,Adult Social Care Operations,Supplies and Services,Feb-22
Slough Borough Council,680,Oxford House Community Care,"1,160.48",M44C,Adult Social Care Operations,Supplies and Services,Feb-22
Slough Borough Council,680,Oxford House Community Care,"1,108.80",M44C,Adult Social Care Operations,Supplies and Services,Feb-22
Slough Borough Council,680,Oxford House Community Care,"1,184.84",M44C,Adult Social Care Operations,Supplies and Services,Feb-22
Slough Borough Council,680,Oxford House Community Care,"2,252.80",M44C,Adult Social Care Operations,Supplies and Services,Feb-22
Slough Borough Council,680,Oxford House Community Care,914.62,M44C,Adult Social Care Operations,Supplies and Services,Feb-22
Slough Borough Council,680,Oxford House Community Care,"1,214.70",M44C,Adult Social Care Operations,Supplies and Services,Feb-22
Slough Borough Council,680,Oxford House Community Care,"2,459.62",M44C,Adult Social Care Operations,Supplies and Services,Feb-22
Slough Borough Council,680,Oxford House Community Care,790.25,M44C,Adult Social Care Operations,Supplies and Services,Feb-22
Slough Borough Council,680,Oxford House Community Care,616.00,M44C,Adult Social Care Operations,Supplies and Services,Feb-22
Slough Borough Council,680,Oxford House Community Care,862.40,M44C,Adult Social Care Operations,Supplies and Services,Feb-22
Slough Borough Council,680,Oxford House Community Care,"1,166.96",M44C,Adult Social Care Operations,Supplies and Services,Feb-22
Slough Borough Council,680,Oxford House Community Care,612.48,M44D,Adult Social Care Operations,Supplies and Services,Feb-22
Slough Borough Council,680,Oxford House Community Care,550.30,M44D,Adult Social Care Operations,Supplies and Services,Feb-22
Slough Borough Council,680,Oxford House Community Care,716.91,M44D,Adult Social Care Operations,Supplies and Services,Feb-22
Slough Borough Council,680,Oxford House Community Care,"1,102.64",M44D,Adult Social Care Operations,Supplies and Services,Feb-22
Slough Borough Council,680,Oxford House Community Care,554.40,M44F,Adult Social Care Operations,Supplies and Services,Feb-22
Slough Borough Council,680,Oxford House Community Care,"1,103.53",M45C,Adult Social Care Operations,Supplies and Services,Feb-22
Slough Borough Council,680,Oxford House Community Care,633.60,M47D,Adult Social Care Operations,Supplies and Services,Feb-22
Slough Borough Council,680,Oxford House Community Care,713.45,M48C,Adult Social Care Operations,Supplies and Services,Feb-22
Slough Borough Council,680,Oxford House Community Care,957.73,M48C,Adult Social Care Operations,Supplies and Services,Feb-22
Slough Borough Council,680,Oxford House Community Care,"1,091.20",M48C,Adult Social Care Operations,Supplies and Services,Feb-22
Slough Borough Council,518,Oxford House Nursing Home,"4,077.82",B298,Finance,Supplies and Services,Feb-22
Slough Borough Council,518,Oxford House Nursing Home,"6,960.37",B324,Finance,Supplies and Services,Feb-22
Slough Borough Council,518,Oxford House Nursing Home,"3,052.60",M15D,Adult Social Care Operations,Supplies and Services,Feb-22
Slough Borough Council,518,Oxford House Nursing Home,"3,052.60",M15D,Adult Social Care Operations,Supplies and Services,Feb-22
Slough Borough Council,518,Oxford House Nursing Home,"3,052.60",M15D,Adult Social Care Operations,Supplies and Services,Feb-22
Slough Borough Council,518,Oxford House Nursing Home,"3,052.60",M15D,Adult Social Care Operations,Supplies and Services,Feb-22
Slough Borough Council,518,Oxford House Nursing Home,"-3,052.60",M18C,Adult Social Care Operations,Supplies and Services,Feb-22
Slough Borough Council,518,Oxford House Nursing Home,"3,052.60",M18C,Adult Social Care Operations,Supplies and Services,Feb-22
Slough Borough Council,518,Oxford House Nursing Home,"3,052.60",M18C,Adult Social Care Operations,Supplies and Services,Feb-22
Slough Borough Council,518,Oxford House Nursing Home,"3,052.60",M18C,Adult Social Care Operations,Supplies and Services,Feb-22
Slough Borough Council,518,Oxford House Nursing Home,"3,052.60",M18C,Adult Social Care Operations,Supplies and Services,Feb-22
Slough Borough Council,518,Oxford House Nursing Home,"3,052.60",M18C,Adult Social Care Operations,Supplies and Services,Feb-22
Slough Borough Council,518,Oxford House Nursing Home,"3,052.60",M18C,Adult Social Care Operations,Supplies and Services,Feb-22
Slough Borough Council,518,Oxford House Nursing Home,"3,052.60",M18C,Adult Social Care Operations,Supplies and Services,Feb-22
Slough Borough Council,518,Oxford House Nursing Home,"3,052.60",M18C,Adult Social Care Operations,Supplies and Services,Feb-22
Slough Borough Council,518,Oxford House Nursing Home,872.17,M28C,Adult Social Care Operations,Supplies and Services,Feb-22
Slough Borough Council,333,P W Secure-It Ltd,994.55,D610,Direct Service Organisation (DSO),Supplies and Services,Feb-22
Slough Borough Council,2520,Paradigm Housing Group Ltd,"28,731.53",H205,Housing (People) Services,Premises,Feb-22
Slough Borough Council,2520,Paradigm Housing Group Ltd,"21,922.10",H205,Housing (People) Services,Premises,Feb-22
Slough Borough Council,2509,Parvaaz Project,"5,800.31",B324,Finance,Supplies and Services,Feb-22
Slough Borough Council,2509,Parvaaz Project,585.00,M44E,Adult Social Care Operations,Supplies and Services,Feb-22
Slough Borough Council,2509,Parvaaz Project,585.00,M44E,Adult Social Care Operations,Supplies and Services,Feb-22
Slough Borough Council,2509,Parvaaz Project,585.00,M44E,Adult Social Care Operations,Supplies and Services,Feb-22
Slough Borough Council,2509,Parvaaz Project,585.00,M44E,Adult Social Care Operations,Supplies and Services,Feb-22
Slough Borough Council,2509,Parvaaz Project,736.00,M50E,Adult Social Care Operations,Supplies and Services,Feb-22
Slough Borough Council,2509,Parvaaz Project,736.00,M50E,Adult Social Care Operations,Supplies and Services,Feb-22
Slough Borough Council,2509,Parvaaz Project,736.00,M50E,Adult Social Care Operations,Supplies and Services,Feb-22
Slough Borough Council,2509,Parvaaz Project,736.00,M50E,Adult Social Care Operations,Supplies and Services,Feb-22
Slough Borough Council,807423,Paygate Solutions Ltd,"8,500.00",B015,Finance,Supplies and Services,Feb-22
Slough Borough Council,824,Penn Wood Primary and Nursery School,"318,244.75",E459,DSG - Schools,Supplies and Services,Feb-22
Slough Borough Council,807611,Peopletoo Ltd,"101,620.00",A01D,Adult Social Care Operations,Supplies and Services,Feb-22
Slough Borough Council,807611,Peopletoo Ltd,"3,000.00",A01D,Adult Social Care Operations,Supplies and Services,Feb-22
Slough Borough Council,807611,Peopletoo Ltd,"5,775.00",M03B,"Children, Learning and Skills",Supplies and Services,Feb-22
Slough Borough Council,1504,Permanent Futures Limited,"5,850.00",F410,DSG - High Needs Block,Agency Staff,Feb-22
Slough Borough Council,1504,Permanent Futures Limited,"1,500.00",F640,Inclusion,Agency Staff,Feb-22
Slough Borough Council,1504,Permanent Futures Limited,"1,500.00",F640,Inclusion,Agency Staff,Feb-22
Slough Borough Council,1504,Permanent Futures Limited,"1,500.00",F640,Inclusion,Agency Staff,Feb-22
Slough Borough Council,1504,Permanent Futures Limited,"1,500.00",F640,Inclusion,Agency Staff,Feb-22
Slough Borough Council,1504,Permanent Futures Limited,"3,000.00",F640,Inclusion,Agency Staff,Feb-22
Slough Borough Council,803786,Phillipa Holliday,"1,463.00",C322,Communities and Leisure,Supplies and Services,Feb-22
Slough Borough Council,807727,Phoenix Infant Academy c/o Thames Learning Trust,"9,747.72",E289,DSG - Schools,Supplies and Services,Feb-22
Slough Borough Council,3359,Pippins School,"17,527.33",E379,DSG - Schools,Supplies and Services,Feb-22
Slough Borough Council,904,Pitney Bowes Finance Plc,"1,621.53",K077,Building Management,Supplies and Services,Feb-22
Slough Borough Council,904,Pitney Bowes Finance Plc,"4,664.98",K077,Building Management,Supplies and Services,Feb-22
Slough Borough Council,807120,PJ Care Limited,"8,880.20",M15D,Adult Social Care Operations,Supplies and Services,Feb-22
Slough Borough Council,803188,Pre Paid Financial Services Ltd,960.00,A05C,Adult Social Care Commissioning,Supplies and Services,Feb-22
Slough Borough Council,803188,Pre Paid Financial Services Ltd,960.00,A05C,Adult Social Care Commissioning,Supplies and Services,Feb-22
Slough Borough Council,803188,Pre Paid Financial Services Ltd,967.00,A05C,Adult Social Care Commissioning,Supplies and Services,Feb-22
Slough Borough Council,803188,Pre Paid Financial Services Ltd,967.00,A05C,Adult Social Care Commissioning,Supplies and Services,Feb-22
Slough Borough Council,803188,Pre Paid Financial Services Ltd,"1,725.00",A05C,Adult Social Care Commissioning,Supplies and Services,Feb-22
Slough Borough Council,803188,Pre Paid Financial Services Ltd,969.00,A05C,Adult Social Care Commissioning,Supplies and Services,Feb-22
Slough Borough Council,803188,Pre Paid Financial Services Ltd,967.00,A05C,Adult Social Care Commissioning,Supplies and Services,Feb-22
Slough Borough Council,803188,Pre Paid Financial Services Ltd,960.00,A05C,Adult Social Care Commissioning,Supplies and Services,Feb-22
Slough Borough Council,2537,Pre School Stars,"4,129.79",F909,DSG - Early Years,Supplies and Services,Feb-22
Slough Borough Council,2693,Pressbeau Ltd,"3,800.00",M18C,Adult Social Care Operations,Supplies and Services,Feb-22
Slough Borough Council,806250,Price & Myers LLP,"7,000.00",P051,Capital,Capital Charges,Feb-22
Slough Borough Council,805398,PRIORITEYES LTD,"4,860.00",A05C,Adult Social Care Commissioning,Supplies and Services,Feb-22
Slough Borough Council,849,Priory Primary School,"404,992.37",E389,DSG - Schools,Supplies and Services,Feb-22
Slough Borough Council,805500,Privilege Care Ltd,"2,485.85",B324,Finance,Supplies and Services,Feb-22
Slough Borough Council,803537,PROLUDIC LTD,"1,223.38",C001,Communities and Leisure,Premises,Feb-22
Slough Borough Council,1138,Qed Slough Ltd,"577,596.41",F868,"Children, Learning and Skills",Supplies and Services,Feb-22
Slough Borough Council,1138,Qed Slough Ltd,"4,332.48",F868,"Children, Learning and Skills",Supplies and Services,Feb-22
Slough Borough Council,805746,Qfree (Bristol) UK Ltd,"1,529.17",D500,Major Infrastructure Projects,Premises,Feb-22
Slough Borough Council,2376,Quality Care Homes Uk Ltd,"1,800.00",M26E,Adult Social Care Operations,Supplies and Services,Feb-22
Slough Borough Council,2376,Quality Care Homes Uk Ltd,"1,800.00",M26E,Adult Social Care Operations,Supplies and Services,Feb-22
Slough Borough Council,2376,Quality Care Homes Uk Ltd,"1,800.00",M26E,Adult Social Care Operations,Supplies and Services,Feb-22
Slough Borough Council,2376,Quality Care Homes Uk Ltd,"1,800.00",M26E,Adult Social Care Operations,Supplies and Services,Feb-22
Slough Borough Council,2376,Quality Care Homes Uk Ltd,"1,800.00",M26E,Adult Social Care Operations,Supplies and Services,Feb-22
Slough Borough Council,2376,Quality Care Homes Uk Ltd,"1,800.00",M26E,Adult Social Care Operations,Supplies and Services,Feb-22
Slough Borough Council,2376,Quality Care Homes Uk Ltd,"1,800.00",M26E,Adult Social Care Operations,Supplies and Services,Feb-22
Slough Borough Council,2376,Quality Care Homes Uk Ltd,"1,800.00",M26E,Adult Social Care Operations,Supplies and Services,Feb-22
Slough Borough Council,2685,R.E.A.C.H,"2,154.40",B324,Finance,Supplies and Services,Feb-22
Slough Borough Council,2685,R.E.A.C.H,"1,988.68",B324,Finance,Supplies and Services,Feb-22
Slough Borough Council,2685,R.E.A.C.H,"3,148.74",B324,Finance,Supplies and Services,Feb-22
Slough Borough Council,2685,R.E.A.C.H,"7,404.56",M26E,Adult Social Care Operations,Supplies and Services,Feb-22
Slough Borough Council,2685,R.E.A.C.H,"6,870.20",M26E,Adult Social Care Operations,Supplies and Services,Feb-22
Slough Borough Council,2685,R.E.A.C.H,"5,928.12",M26E,Adult Social Care Operations,Supplies and Services,Feb-22
Slough Borough Council,2685,R.E.A.C.H,"7,485.72",M26E,Adult Social Care Operations,Supplies and Services,Feb-22
Slough Borough Council,2685,R.E.A.C.H,"5,261.44",M26E,Adult Social Care Operations,Supplies and Services,Feb-22
Slough Borough Council,2685,R.E.A.C.H,-608.80,M26E,Adult Social Care Operations,External Receipts,Feb-22
Slough Borough Council,1305,Rackspace Limited,"3,808.18",B282,Digital and Strategic IT,Supplies and Services,Feb-22
Slough Borough Council,805444,Reading Transport Ltd,"11,232.00",F123,Schools,Supplies and Services,Feb-22
Slough Borough Council,805444,Reading Transport Ltd,"7,919.67",D512,Major Infrastructure Projects,Supplies and Services,Feb-22
Slough Borough Council,805444,Reading Transport Ltd,"-7,919.67",D512,Major Infrastructure Projects,Supplies and Services,Feb-22
Slough Borough Council,805444,Reading Transport Ltd,"7,919.67",D512,Major Infrastructure Projects,Supplies and Services,Feb-22
Slough Borough Council,805444,Reading Transport Ltd,"7,919.67",D512,Major Infrastructure Projects,Supplies and Services,Feb-22
Slough Borough Council,806766,Red Brick Care Ltd,860.00,M44C,Adult Social Care Operations,Supplies and Services,Feb-22
Slough Borough Council,806766,Red Brick Care Ltd,"2,057.00",M44C,Adult Social Care Operations,Supplies and Services,Feb-22
Slough Borough Council,806541,Redacted,"4,620.00",F550,DSG - High Needs Block,Supplies and Services,Feb-22
Slough Borough Council,807635,Redacted,513.00,F123,Schools,Supplies and Services,Feb-22
Slough Borough Council,806541,Redacted,"15,337.37",F909,DSG - Early Years,Supplies and Services,Feb-22
Slough Borough Council,803807,Redacted,"1,146.37",F909,DSG - Early Years,Supplies and Services,Feb-22
Slough Borough Council,803807,Redacted,"1,146.37",F909,DSG - Early Years,Supplies and Services,Feb-22
Slough Borough Council,3553,Redacted,603.22,F909,DSG - Early Years,Supplies and Services,Feb-22
Slough Borough Council,3553,Redacted,603.22,F909,DSG - Early Years,Supplies and Services,Feb-22
Slough Borough Council,3903,Redacted,959.33,F909,DSG - Early Years,Supplies and Services,Feb-22
Slough Borough Council,3903,Redacted,959.33,F909,DSG - Early Years,Supplies and Services,Feb-22
Slough Borough Council,805403,Redacted,"1,221.00",F909,DSG - Early Years,Supplies and Services,Feb-22
Slough Borough Council,805403,Redacted,"1,221.00",F909,DSG - Early Years,Supplies and Services,Feb-22
Slough Borough Council,805307,Redacted,"1,148.90",F909,DSG - Early Years,Supplies and Services,Feb-22
Slough Borough Council,805307,Redacted,"1,148.90",F909,DSG - Early Years,Supplies and Services,Feb-22
Slough Borough Council,3834,Redacted,537.32,F909,DSG - Early Years,Supplies and Services,Feb-22
Slough Borough Council,3834,Redacted,537.32,F909,DSG - Early Years,Supplies and Services,Feb-22
Slough Borough Council,3173,Redacted,594.64,F909,DSG - Early Years,Supplies and Services,Feb-22
Slough Borough Council,3173,Redacted,594.64,F909,DSG - Early Years,Supplies and Services,Feb-22
Slough Borough Council,3209,Redacted,610.50,F909,DSG - Early Years,Supplies and Services,Feb-22
Slough Borough Council,3209,Redacted,610.50,F909,DSG - Early Years,Supplies and Services,Feb-22
Slough Borough Council,804932,Redacted,"1,425.24",F909,DSG - Early Years,Supplies and Services,Feb-22
Slough Borough Council,804932,Redacted,"1,425.24",F909,DSG - Early Years,Supplies and Services,Feb-22
Slough Borough Council,804705,Redacted,582.75,F909,DSG - Early Years,Supplies and Services,Feb-22
Slough Borough Council,804705,Redacted,582.75,F909,DSG - Early Years,Supplies and Services,Feb-22
Slough Borough Council,803824,Redacted,"1,384.62",F909,DSG - Early Years,Supplies and Services,Feb-22
Slough Borough Council,803824,Redacted,"1,384.62",F909,DSG - Early Years,Supplies and Services,Feb-22
Slough Borough Council,807475,Redacted,"6,091.49",F909,DSG - Early Years,Supplies and Services,Feb-22
Slough Borough Council,807475,Redacted,"6,091.49",F909,DSG - Early Years,Supplies and Services,Feb-22
Slough Borough Council,3251,Redacted,610.49,F909,DSG - Early Years,Supplies and Services,Feb-22
Slough Borough Council,3251,Redacted,610.49,F909,DSG - Early Years,Supplies and Services,Feb-22
Slough Borough Council,807836,Redacted,"2,475.00",F909,DSG - Early Years,Supplies and Services,Feb-22
Slough Borough Council,807836,Redacted,"2,475.00",F909,DSG - Early Years,Supplies and Services,Feb-22
Slough Borough Council,803884,Redacted,"1,202.25",F909,DSG - Early Years,Supplies and Services,Feb-22
Slough Borough Council,803884,Redacted,"1,202.25",F909,DSG - Early Years,Supplies and Services,Feb-22
Slough Borough Council,3917,Redacted,610.50,F909,DSG - Early Years,Supplies and Services,Feb-22
Slough Borough Council,3917,Redacted,610.50,F909,DSG - Early Years,Supplies and Services,Feb-22
Slough Borough Council,803819,Redacted,771.70,F909,DSG - Early Years,Supplies and Services,Feb-22
Slough Borough Council,803819,Redacted,771.70,F909,DSG - Early Years,Supplies and Services,Feb-22
Slough Borough Council,805317,Redacted,915.75,F909,DSG - Early Years,Supplies and Services,Feb-22
Slough Borough Council,805317,Redacted,915.75,F909,DSG - Early Years,Supplies and Services,Feb-22
Slough Borough Council,804597,Redline Buses Ltd,"4,840.13",D512,Major Infrastructure Projects,Supplies and Services,Feb-22
Slough Borough Council,804597,Redline Buses Ltd,"5,351.00",D512,Major Infrastructure Projects,Supplies and Services,Feb-22
Slough Borough Council,804597,Redline Buses Ltd,"4,976.11",D512,Major Infrastructure Projects,Supplies and Services,Feb-22
Slough Borough Council,804597,Redline Buses Ltd,"5,151.12",D512,Major Infrastructure Projects,Supplies and Services,Feb-22
Slough Borough Council,804597,Redline Buses Ltd,"3,622.26",D512,Major Infrastructure Projects,Supplies and Services,Feb-22
Slough Borough Council,804597,Redline Buses Ltd,"4,146.20",D512,Major Infrastructure Projects,Supplies and Services,Feb-22
Slough Borough Council,804597,Redline Buses Ltd,"4,614.58",D512,Major Infrastructure Projects,Supplies and Services,Feb-22
Slough Borough Council,804597,Redline Buses Ltd,"4,430.57",D512,Major Infrastructure Projects,Supplies and Services,Feb-22
Slough Borough Council,806854,Reed Specialist Recruitment,778.13,B033,People,Salaries and Wages,Feb-22
Slough Borough Council,806854,Reed Specialist Recruitment,778.13,B033,People,Salaries and Wages,Feb-22
Slough Borough Council,806854,Reed Specialist Recruitment,771.28,B033,People,Salaries and Wages,Feb-22
Slough Borough Council,807562,Renovo Farnborough Limited,"7,679.44",M25D,Adult Social Care Operations,Supplies and Services,Feb-22
Slough Borough Council,687,Rics,"2,335.00",B081,Regeneration Development,Supplies and Services,Feb-22
Slough Borough Council,806930,Roselight Healthcare Service Limited,"3,340.00",M42F,Adult Social Care Operations,Supplies and Services,Feb-22
Slough Borough Council,806930,Roselight Healthcare Service Limited,"2,360.00",M42F,Adult Social Care Operations,Supplies and Services,Feb-22
Slough Borough Council,806930,Roselight Healthcare Service Limited,"3,340.00",M44F,Adult Social Care Operations,Supplies and Services,Feb-22
Slough Borough Council,806930,Roselight Healthcare Service Limited,"2,600.00",M44F,Adult Social Care Operations,Supplies and Services,Feb-22
Slough Borough Council,806930,Roselight Healthcare Service Limited,"1,930.00",M44F,Adult Social Care Operations,Supplies and Services,Feb-22
Slough Borough Council,806930,Roselight Healthcare Service Limited,"1,722.00",M44F,Adult Social Care Operations,Supplies and Services,Feb-22
Slough Borough Council,806930,Roselight Healthcare Service Limited,"1,506.00",M44F,Adult Social Care Operations,Supplies and Services,Feb-22
Slough Borough Council,804860,Royal Masonic Benevolent Institution,"3,800.00",M18C,Adult Social Care Operations,Supplies and Services,Feb-22
Slough Borough Council,2168,RSM UK Risk Assurance Services LLP,"25,572.75",B132,Finance,Supplies and Services,Feb-22
Slough Borough Council,842,Ryvers Primary School,"13,510.03",E399,DSG - Schools,Supplies and Services,Feb-22
Slough Borough Council,805875,Salutem LD Bidco IV Limited T/A Ambito Care,"6,000.00",M25D,Adult Social Care Operations,Supplies and Services,Feb-22
Slough Borough Council,805875,Salutem LD Bidco IV Limited T/A Ambito Care,"4,059.60",M26E,Adult Social Care Operations,Supplies and Services,Feb-22
Slough Borough Council,805875,Salutem LD Bidco IV Limited T/A Ambito Care,-552.40,M26E,Adult Social Care Operations,External Receipts,Feb-22
Slough Borough Council,804350,Sandra�s Childcare,"1,073.03",F909,DSG - Early Years,Supplies and Services,Feb-22
Slough Borough Council,804350,Sandra�s Childcare,"1,073.03",F909,DSG - Early Years,Supplies and Services,Feb-22
Slough Borough Council,925,Sara Wood,650.00,D320,Regulatory Services,Supplies and Services,Feb-22
Slough Borough Council,925,Sara Wood,550.00,D320,Regulatory Services,Supplies and Services,Feb-22
Slough Borough Council,925,Sara Wood,"1,075.00",D320,Regulatory Services,Supplies and Services,Feb-22
Slough Borough Council,925,Sara Wood,700.00,D320,Regulatory Services,Supplies and Services,Feb-22
Slough Borough Council,1580,Savills (UK) Ltd,"19,864.00",P432,Capital,Capital Charges,Feb-22
Slough Borough Council,1580,Savills (UK) Ltd,"3,000.00",J606,HDC Housing Development,Supplies and Services,Feb-22
Slough Borough Council,1580,Savills (UK) Ltd,"14,850.00",J606,HDC Housing Development,Supplies and Services,Feb-22
Slough Borough Council,1580,Savills (UK) Ltd,"1,250.00",J606,HDC Housing Development,Supplies and Services,Feb-22
Slough Borough Council,1580,Savills (UK) Ltd,"3,000.00",J606,HDC Housing Development,Supplies and Services,Feb-22
Slough Borough Council,1580,Savills (UK) Ltd,"3,000.00",J606,HDC Housing Development,Supplies and Services,Feb-22
Slough Borough Council,3169,Seeability,"8,210.13",M26E,Adult Social Care Operations,Supplies and Services,Feb-22
Slough Borough Council,3169,Seeability,"11,377.00",M26E,Adult Social Care Operations,Supplies and Services,Feb-22
Slough Borough Council,3169,Seeability,"10,350.19",M26E,Adult Social Care Operations,Supplies and Services,Feb-22
Slough Borough Council,3169,Seeability,"10,276.00",M26E,Adult Social Care Operations,Supplies and Services,Feb-22
Slough Borough Council,3169,Seeability,"9,348.56",M26E,Adult Social Care Operations,Supplies and Services,Feb-22
Slough Borough Council,803999,Sequence Care Group,"11,045.31",M26E,Adult Social Care Operations,Supplies and Services,Feb-22
Slough Borough Council,803999,Sequence Care Group,"-12,228.79",M26E,Adult Social Care Operations,Supplies and Services,Feb-22
Slough Borough Council,803999,Sequence Care Group,"12,228.79",M26E,Adult Social Care Operations,Supplies and Services,Feb-22
Slough Borough Council,808140,Service to the Aged Ltd,"3,764.33",M15D,Adult Social Care Operations,Supplies and Services,Feb-22
Slough Borough Council,2585,Seymour House,"5,774.37",M26E,Adult Social Care Operations,Supplies and Services,Feb-22
Slough Borough Council,2585,Seymour House,"1,488.00",M26E,Adult Social Care Operations,Supplies and Services,Feb-22
Slough Borough Council,2585,Seymour House,"2,376.76",M42E,Adult Social Care Operations,Supplies and Services,Feb-22
Slough Borough Council,808238,SFE Limited,"1,500.00",B015,Finance,Salaries and Wages,Feb-22
Slough Borough Council,805203,Shorts Agricultural Services Ltd,"3,837.09",D342,Direct Service Organisation (DSO),Supplies and Services,Feb-22
Slough Borough Council,805807,Siemens Mobility Limited,"1,879.53",D500,Major Infrastructure Projects,Premises,Feb-22
Slough Borough Council,805807,Siemens Mobility Limited,550.27,D500,Major Infrastructure Projects,Premises,Feb-22
Slough Borough Council,805807,Siemens Mobility Limited,"22,415.59",D500,Major Infrastructure Projects,Premises,Feb-22
Slough Borough Council,805807,Siemens Mobility Limited,"2,734.00",D500,Major Infrastructure Projects,Premises,Feb-22
Slough Borough Council,805807,Siemens Mobility Limited,"1,710.46",P192,Capital,Capital Charges,Feb-22
Slough Borough Council,807165,Slindon College,"10,670.00",F462,DSG - High Needs Block,Supplies and Services,Feb-22
Slough Borough Council,3333,Slk Services,"5,355.00",F123,Schools,Supplies and Services,Feb-22
Slough Borough Council,472,Slough & Eton C.E.School,"4,710.00",B297,Finance,Government Grants,Feb-22
Slough Borough Council,1459,Slough And Eton C E School,"11,916.33",E769,DSG - Schools,Supplies and Services,Feb-22
Slough Borough Council,807834,Slough Children First,"2,666,500.00",M99C,"Children, Learning and Skills",Supplies and Services,Feb-22
Slough Borough Council,1619,Slough Council For Voluntary Services,"171,875.00",B283,Finance,Supplies and Services,Feb-22
Slough Borough Council,1913,Slough Crossroads Caring For Carers,"3,257.37",B298,Finance,Supplies and Services,Feb-22
Slough Borough Council,1913,Slough Crossroads Caring For Carers,"2,485.85",B324,Finance,Supplies and Services,Feb-22
Slough Borough Council,1913,Slough Crossroads Caring For Carers,883.28,M44C,Adult Social Care Operations,Supplies and Services,Feb-22
Slough Borough Council,1913,Slough Crossroads Caring For Carers,899.79,M44C,Adult Social Care Operations,Supplies and Services,Feb-22
Slough Borough Council,1913,Slough Crossroads Caring For Carers,903.92,M44C,Adult Social Care Operations,Supplies and Services,Feb-22
Slough Borough Council,1913,Slough Crossroads Caring For Carers,660.24,M44C,Adult Social Care Operations,Supplies and Services,Feb-22
Slough Borough Council,1913,Slough Crossroads Caring For Carers,660.24,M44C,Adult Social Care Operations,Supplies and Services,Feb-22
Slough Borough Council,1913,Slough Crossroads Caring For Carers,660.24,M44C,Adult Social Care Operations,Supplies and Services,Feb-22
Slough Borough Council,1913,Slough Crossroads Caring For Carers,610.71,M44C,Adult Social Care Operations,Supplies and Services,Feb-22
Slough Borough Council,1913,Slough Crossroads Caring For Carers,924.56,M44C,Adult Social Care Operations,Supplies and Services,Feb-22
Slough Borough Council,1913,Slough Crossroads Caring For Carers,528.00,M44D,Adult Social Care Operations,Supplies and Services,Feb-22
Slough Borough Council,1913,Slough Crossroads Caring For Carers,"1,584.96",M44E,Adult Social Care Operations,Supplies and Services,Feb-22
Slough Borough Council,1913,Slough Crossroads Caring For Carers,"1,584.96",M44E,Adult Social Care Operations,Supplies and Services,Feb-22
Slough Borough Council,1913,Slough Crossroads Caring For Carers,594.36,M44E,Adult Social Care Operations,Supplies and Services,Feb-22
Slough Borough Council,1913,Slough Crossroads Caring For Carers,660.40,M44E,Adult Social Care Operations,Supplies and Services,Feb-22
Slough Borough Council,1913,Slough Crossroads Caring For Carers,528.32,M44E,Adult Social Care Operations,Supplies and Services,Feb-22
Slough Borough Council,1913,Slough Crossroads Caring For Carers,858.52,M44E,Adult Social Care Operations,Supplies and Services,Feb-22
Slough Borough Council,1913,Slough Crossroads Caring For Carers,"1,584.96",M44E,Adult Social Care Operations,Supplies and Services,Feb-22
Slough Borough Council,1913,Slough Crossroads Caring For Carers,610.87,M44E,Adult Social Care Operations,Supplies and Services,Feb-22
Slough Borough Council,1913,Slough Crossroads Caring For Carers,"1,584.96",M44E,Adult Social Care Operations,Supplies and Services,Feb-22
Slough Borough Council,1913,Slough Crossroads Caring For Carers,908.05,M44E,Adult Social Care Operations,Supplies and Services,Feb-22
Slough Borough Council,1913,Slough Crossroads Caring For Carers,660.40,M44E,Adult Social Care Operations,Supplies and Services,Feb-22
Slough Borough Council,1913,Slough Crossroads Caring For Carers,858.52,M44E,Adult Social Care Operations,Supplies and Services,Feb-22
Slough Borough Council,1913,Slough Crossroads Caring For Carers,990.60,M44E,Adult Social Care Operations,Supplies and Services,Feb-22
Slough Borough Council,1913,Slough Crossroads Caring For Carers,858.52,M44E,Adult Social Care Operations,Supplies and Services,Feb-22
Slough Borough Council,1913,Slough Crossroads Caring For Carers,"1,584.96",M44E,Adult Social Care Operations,Supplies and Services,Feb-22
Slough Borough Council,1913,Slough Crossroads Caring For Carers,990.60,M44E,Adult Social Care Operations,Supplies and Services,Feb-22
Slough Borough Council,1913,Slough Crossroads Caring For Carers,858.52,M44E,Adult Social Care Operations,Supplies and Services,Feb-22
Slough Borough Council,1913,Slough Crossroads Caring For Carers,814.04,M44E,Adult Social Care Operations,Supplies and Services,Feb-22
Slough Borough Council,1913,Slough Crossroads Caring For Carers,990.04,M44E,Adult Social Care Operations,Supplies and Services,Feb-22
Slough Borough Council,1913,Slough Crossroads Caring For Carers,814.04,M44E,Adult Social Care Operations,Supplies and Services,Feb-22
Slough Borough Council,1913,Slough Crossroads Caring For Carers,528.00,M44E,Adult Social Care Operations,Supplies and Services,Feb-22
Slough Borough Council,1913,Slough Crossroads Caring For Carers,858.52,M44E,Adult Social Care Operations,Supplies and Services,Feb-22
Slough Borough Council,1913,Slough Crossroads Caring For Carers,990.60,M44E,Adult Social Care Operations,Supplies and Services,Feb-22
Slough Borough Council,804380,Slough Refugee Council,"8,285.83",B211,Communities and Leisure,Premises,Feb-22
Slough Borough Council,3011,Slough Urban Renewal Community Projects LLP,"13,680.10",P204,Capital,Capital Charges,Feb-22
Slough Borough Council,382,Softcat Plc,"25,000.00",B282,Digital and Strategic IT,Supplies and Services,Feb-22
Slough Borough Council,394,Solon Security Ltd,600.00,C406,Communities and Leisure,Supplies and Services,Feb-22
Slough Borough Council,114,Solutions 4 Health Ltd,"29,250.00",A03C,Adult Social Care Commissioning,Supplies and Services,Feb-22
Slough Borough Council,114,Solutions 4 Health Ltd,"74,771.06",B310,Finance,Supplies and Services,Feb-22
Slough Borough Council,114,Solutions 4 Health Ltd,"229,057.81",A09C,Adult Social Care Commissioning,Supplies and Services,Feb-22
Slough Borough Council,114,Solutions 4 Health Ltd,"60,000.00",A09C,Adult Social Care Commissioning,Supplies and Services,Feb-22
Slough Borough Council,807995,Sport4Kids,"3,833.15",F382,Children & Families,Supplies and Services,Feb-22
Slough Borough Council,804781,Sports and Leisure Management Ltd,"11,175.83",B310,Finance,Supplies and Services,Feb-22
Slough Borough Council,1875,Ss & Kk. Hothi,"15,816.66",H205,Housing (People) Services,Premises,Feb-22
Slough Borough Council,1875,Ss & Kk. Hothi,"11,771.25",H205,Housing (People) Services,Premises,Feb-22
Slough Borough Council,808060,SSE,684.00,H203,Housing (People) Services,Premises,Feb-22
Slough Borough Council,803165,St Anthony�s Catholic Primary School & Nursery,"21,399.41",E409,DSG - Schools,Supplies and Services,Feb-22
Slough Borough Council,2918,St Bernard�S Rc Preparatory School,"12,089.73",F909,DSG - Early Years,Supplies and Services,Feb-22
Slough Borough Council,3383,St Bernards Catholic Grammar School,"454,786.07",E559,DSG - Schools,Supplies and Services,Feb-22
Slough Borough Council,805366,St Edmund Campion Catholic Primary School,"2,196.00",F552,DSG - High Needs Block,Supplies and Services,Feb-22
Slough Borough Council,3547,St Ethelberts School,"20,761.16",E419,DSG - Schools,Supplies and Services,Feb-22
Slough Borough Council,1378,St Josephs Catholic High School,"15,208.33",E569,DSG - Schools,Supplies and Services,Feb-22
Slough Borough Council,806584,St Mattews Ltd,"3,700.00",M15F,Adult Social Care Operations,Supplies and Services,Feb-22
Slough Borough Council,468,Stannah Lift Services Ltd,"2,687.00",P006,Capital,Supplies and Services,Feb-22
Slough Borough Council,808142,Step Together Ltd,640.00,M28E,Adult Social Care Operations,Supplies and Services,Feb-22
Slough Borough Council,806115,Stepping Stones,607.63,F909,DSG - Early Years,Supplies and Services,Feb-22
Slough Borough Council,806115,Stepping Stones,607.63,F909,DSG - Early Years,Supplies and Services,Feb-22
Slough Borough Council,806522,Stewarts Coaches,833.40,D512,Major Infrastructure Projects,Supplies and Services,Feb-22
Slough Borough Council,1330,Storm Technologies Ltd,"11,983.20",P084,Capital,Supplies and Services,Feb-22
Slough Borough Council,1330,Storm Technologies Ltd,"11,983.20",P084,Capital,Supplies and Services,Feb-22
Slough Borough Council,1330,Storm Technologies Ltd,"2,990.00",P084,Capital,Supplies and Services,Feb-22
Slough Borough Council,805181,Street Furnishings Ltd,899.64,D880,Direct Service Organisation (DSO),Supplies and Services,Feb-22
Slough Borough Council,2688,Sunnyside Nursing Home,"2,991.76",M15D,Adult Social Care Operations,Supplies and Services,Feb-22
Slough Borough Council,807889,Sunrise Transport Ltd,"2,064.00",F123,Schools,Supplies and Services,Feb-22
Slough Borough Council,807889,Sunrise Transport Ltd,"4,030.00",F123,Schools,Supplies and Services,Feb-22
Slough Borough Council,293,Surecare Slough,"5,966.03",B324,Finance,Supplies and Services,Feb-22
Slough Borough Council,293,Surecare Slough,580.98,A07R,Adult Social Care Operations,Supplies and Services,Feb-22
Slough Borough Council,293,Surecare Slough,549.24,A07R,Adult Social Care Operations,Supplies and Services,Feb-22
Slough Borough Council,293,Surecare Slough,535.36,A07R,Adult Social Care Operations,Supplies and Services,Feb-22
Slough Borough Council,293,Surecare Slough,668.50,M44C,Adult Social Care Operations,Supplies and Services,Feb-22
Slough Borough Council,293,Surecare Slough,"1,487.45",M44C,Adult Social Care Operations,Supplies and Services,Feb-22
Slough Borough Council,293,Surecare Slough,"2,406.60",M44C,Adult Social Care Operations,Supplies and Services,Feb-22
Slough Borough Council,293,Surecare Slough,935.90,M44C,Adult Social Care Operations,Supplies and Services,Feb-22
Slough Borough Council,293,Surecare Slough,534.80,M44C,Adult Social Care Operations,Supplies and Services,Feb-22
Slough Borough Council,293,Surecare Slough,"2,406.60",M44C,Adult Social Care Operations,Supplies and Services,Feb-22
Slough Borough Council,293,Surecare Slough,"2,941.40",M44C,Adult Social Care Operations,Supplies and Services,Feb-22
Slough Borough Council,293,Surecare Slough,"1,337.00",M44C,Adult Social Care Operations,Supplies and Services,Feb-22
Slough Borough Council,293,Surecare Slough,783.10,M44C,Adult Social Care Operations,Supplies and Services,Feb-22
Slough Borough Council,293,Surecare Slough,"2,406.60",M44C,Adult Social Care Operations,Supplies and Services,Feb-22
Slough Borough Council,293,Surecare Slough,"2,933.72",M44C,Adult Social Care Operations,Supplies and Services,Feb-22
Slough Borough Council,293,Surecare Slough,802.20,M44C,Adult Social Care Operations,Supplies and Services,Feb-22
Slough Borough Council,293,Surecare Slough,"1,184.20",M44C,Adult Social Care Operations,Supplies and Services,Feb-22
Slough Borough Council,293,Surecare Slough,534.80,M44C,Adult Social Care Operations,Supplies and Services,Feb-22
Slough Borough Council,293,Surecare Slough,"2,674.00",M44C,Adult Social Care Operations,Supplies and Services,Feb-22
Slough Borough Council,293,Surecare Slough,"2,502.10",M44C,Adult Social Care Operations,Supplies and Services,Feb-22
Slough Borough Council,293,Surecare Slough,"1,203.30",M44C,Adult Social Care Operations,Supplies and Services,Feb-22
Slough Borough Council,293,Surecare Slough,"1,097.37",M44C,Adult Social Care Operations,Supplies and Services,Feb-22
Slough Borough Council,293,Surecare Slough,668.64,M44C,Adult Social Care Operations,Supplies and Services,Feb-22
Slough Borough Council,293,Surecare Slough,802.20,M44C,Adult Social Care Operations,Supplies and Services,Feb-22
Slough Borough Council,293,Surecare Slough,"1,891.12",M44C,Adult Social Care Operations,Supplies and Services,Feb-22
Slough Borough Council,293,Surecare Slough,936.04,M44C,Adult Social Care Operations,Supplies and Services,Feb-22
Slough Borough Council,293,Surecare Slough,936.04,M44C,Adult Social Care Operations,Supplies and Services,Feb-22
Slough Borough Council,293,Surecare Slough,"2,406.60",M44C,Adult Social Care Operations,Supplies and Services,Feb-22
Slough Borough Council,293,Surecare Slough,993.20,M44C,Adult Social Care Operations,Supplies and Services,Feb-22
Slough Borough Council,293,Surecare Slough,"1,053.59",M44C,Adult Social Care Operations,Supplies and Services,Feb-22
Slough Borough Council,293,Surecare Slough,"2,476.60",M44C,Adult Social Care Operations,Supplies and Services,Feb-22
Slough Borough Council,293,Surecare Slough,553.92,M44C,Adult Social Care Operations,Supplies and Services,Feb-22
Slough Borough Council,293,Surecare Slough,611.20,M44C,Adult Social Care Operations,Supplies and Services,Feb-22
Slough Borough Council,293,Surecare Slough,"2,406.60",M44C,Adult Social Care Operations,Supplies and Services,Feb-22
Slough Borough Council,293,Surecare Slough,"2,674.00",M44C,Adult Social Care Operations,Supplies and Services,Feb-22
Slough Borough Council,293,Surecare Slough,"1,060.05",M44C,Adult Social Care Operations,Supplies and Services,Feb-22
Slough Borough Council,293,Surecare Slough,"1,337.84",M44C,Adult Social Care Operations,Supplies and Services,Feb-22
Slough Borough Council,293,Surecare Slough,"1,088.84",M44C,Adult Social Care Operations,Supplies and Services,Feb-22
Slough Borough Council,293,Surecare Slough,"1,260.60",M44C,Adult Social Care Operations,Supplies and Services,Feb-22
Slough Borough Council,293,Surecare Slough,"2,406.60",M44C,Adult Social Care Operations,Supplies and Services,Feb-22
Slough Borough Council,293,Surecare Slough,"2,406.60",M44C,Adult Social Care Operations,Supplies and Services,Feb-22
Slough Borough Council,293,Surecare Slough,"1,402.58",M44C,Adult Social Care Operations,Supplies and Services,Feb-22
Slough Borough Council,293,Surecare Slough,"1,337.00",M44D,Adult Social Care Operations,Supplies and Services,Feb-22
Slough Borough Council,293,Surecare Slough,"1,222.40",M44D,Adult Social Care Operations,Supplies and Services,Feb-22
Slough Borough Council,293,Surecare Slough,668.50,M44D,Adult Social Care Operations,Supplies and Services,Feb-22
Slough Borough Council,293,Surecare Slough,"1,428.99",M44D,Adult Social Care Operations,Supplies and Services,Feb-22
Slough Borough Council,293,Surecare Slough,"1,594.25",M44D,Adult Social Care Operations,Supplies and Services,Feb-22
Slough Borough Council,293,Surecare Slough,"2,406.60",M44D,Adult Social Care Operations,Supplies and Services,Feb-22
Slough Borough Council,293,Surecare Slough,"2,406.60",M44D,Adult Social Care Operations,Supplies and Services,Feb-22
Slough Borough Council,293,Surecare Slough,"2,514.35",M44D,Adult Social Care Operations,Supplies and Services,Feb-22
Slough Borough Council,293,Surecare Slough,"2,406.60",M44D,Adult Social Care Operations,Supplies and Services,Feb-22
Slough Borough Council,293,Surecare Slough,945.62,M44D,Adult Social Care Operations,Supplies and Services,Feb-22
Slough Borough Council,293,Surecare Slough,668.64,M44D,Adult Social Care Operations,Supplies and Services,Feb-22
Slough Borough Council,293,Surecare Slough,"1,872.08",M44D,Adult Social Care Operations,Supplies and Services,Feb-22
Slough Borough Council,293,Surecare Slough,"1,190.60",M44D,Adult Social Care Operations,Supplies and Services,Feb-22
Slough Borough Council,293,Surecare Slough,"2,139.20",M44D,Adult Social Care Operations,Supplies and Services,Feb-22
Slough Borough Council,293,Surecare Slough,687.60,M44E,Adult Social Care Operations,Supplies and Services,Feb-22
Slough Borough Council,293,Surecare Slough,802.20,M44E,Adult Social Care Operations,Supplies and Services,Feb-22
Slough Borough Council,293,Surecare Slough,687.60,M44F,Adult Social Care Operations,Supplies and Services,Feb-22
Slough Borough Council,293,Surecare Slough,"1,074.51",M45C,Adult Social Care Operations,Supplies and Services,Feb-22
Slough Borough Council,293,Surecare Slough,773.55,M45C,Adult Social Care Operations,Supplies and Services,Feb-22
Slough Borough Council,293,Surecare Slough,"2,406.60",M47D,Adult Social Care Operations,Supplies and Services,Feb-22
Slough Borough Council,293,Surecare Slough,639.67,M48C,Adult Social Care Operations,Supplies and Services,Feb-22
Slough Borough Council,293,Surecare Slough,"2,406.60",M48C,Adult Social Care Operations,Supplies and Services,Feb-22
Slough Borough Council,293,Surecare Slough,"1,375.48",M48C,Adult Social Care Operations,Supplies and Services,Feb-22
Slough Borough Council,293,Surecare Slough,"2,674.00",M48C,Adult Social Care Operations,Supplies and Services,Feb-22
Slough Borough Council,293,Surecare Slough,679.42,M48C,Adult Social Care Operations,Supplies and Services,Feb-22
Slough Borough Council,293,Surecare Slough,611.20,M48C,Adult Social Care Operations,Supplies and Services,Feb-22
Slough Borough Council,293,Surecare Slough,"2,901.58",M48C,Adult Social Care Operations,Supplies and Services,Feb-22
Slough Borough Council,805683,Team Carita DCS Limited,"1,072.00",M44C,Adult Social Care Operations,Supplies and Services,Feb-22
Slough Borough Council,805683,Team Carita DCS Limited,"1,072.00",M44C,Adult Social Care Operations,Supplies and Services,Feb-22
Slough Borough Council,805683,Team Carita DCS Limited,896.00,M44F,Adult Social Care Operations,Supplies and Services,Feb-22
Slough Borough Council,805683,Team Carita DCS Limited,896.00,M44F,Adult Social Care Operations,Supplies and Services,Feb-22
Slough Borough Council,3369,Teeny Boppers Montessori School,"6,118.00",F909,DSG - Early Years,Supplies and Services,Feb-22
Slough Borough Council,1596,Teleshore (Uk) Limited,731.00,D320,Regulatory Services,Supplies and Services,Feb-22
Slough Borough Council,807878,Thames Valley Buses,"6,911.55",D512,Major Infrastructure Projects,Supplies and Services,Feb-22
Slough Borough Council,807878,Thames Valley Buses,"6,911.55",D512,Major Infrastructure Projects,Supplies and Services,Feb-22
Slough Borough Council,807878,Thames Valley Buses,"1,009.80",D512,Major Infrastructure Projects,Supplies and Services,Feb-22
Slough Borough Council,807878,Thames Valley Buses,"1,761.68",D512,Major Infrastructure Projects,Supplies and Services,Feb-22
Slough Borough Council,807878,Thames Valley Buses,"18,487.00",D512,Major Infrastructure Projects,Supplies and Services,Feb-22
Slough Borough Council,717,Thames Water Utilities Limited,"2,032.72",J015,Housing Revenue Account,Premises,Feb-22
Slough Borough Council,717,Thames Water Utilities Limited,"7,142.00",P235,Capital,Capital Charges,Feb-22
Slough Borough Council,803774,The Abbeyfield Maidenhead Society Ltd,"3,321.43",M27C,Adult Social Care Operations,Supplies and Services,Feb-22
Slough Borough Council,803774,The Abbeyfield Maidenhead Society Ltd,"3,214.29",M27C,Adult Social Care Operations,Supplies and Services,Feb-22
Slough Borough Council,653,The Godolphin Junior Academy,"4,583.00",E779,DSG - Schools,Supplies and Services,Feb-22
Slough Borough Council,808219,The Growth Company Limited,"1,650.00",F210,Communities and Leisure,Supplies and Services,Feb-22
Slough Borough Council,1385,The Langley Academy,"10,458.33",E719,DSG - Schools,Supplies and Services,Feb-22
Slough Borough Council,803300,The Langley Academy Primary,"23,992.51",E469,DSG - Schools,Supplies and Services,Feb-22
Slough Borough Council,806847,The Langley Heritage Primary Academy,"36,433.17",E369,DSG - Schools,Supplies and Services,Feb-22
Slough Borough Council,806847,The Langley Heritage Primary Academy,"10,160.00",B297,Finance,Government Grants,Feb-22
Slough Borough Council,805400,The Leading Care Company,"3,908.84",B298,Finance,Supplies and Services,Feb-22
Slough Borough Council,805400,The Leading Care Company,"4,337.50",B298,Finance,Supplies and Services,Feb-22
Slough Borough Council,805400,The Leading Care Company,"1,030.94",B298,Finance,Supplies and Services,Feb-22
Slough Borough Council,805400,The Leading Care Company,"10,606.27",B324,Finance,Supplies and Services,Feb-22
Slough Borough Council,805400,The Leading Care Company,"1,972.12",M41D,Adult Social Care Operations,Supplies and Services,Feb-22
Slough Borough Council,805400,The Leading Care Company,842.99,M44C,Adult Social Care Operations,Supplies and Services,Feb-22
Slough Borough Council,805400,The Leading Care Company,"1,078.84",M44C,Adult Social Care Operations,Supplies and Services,Feb-22
Slough Borough Council,805400,The Leading Care Company,823.97,M44C,Adult Social Care Operations,Supplies and Services,Feb-22
Slough Borough Council,805400,The Leading Care Company,571.35,M44C,Adult Social Care Operations,Supplies and Services,Feb-22
Slough Borough Council,805400,The Leading Care Company,686.48,M44C,Adult Social Care Operations,Supplies and Services,Feb-22
Slough Borough Council,805400,The Leading Care Company,"1,802.87",M44C,Adult Social Care Operations,Supplies and Services,Feb-22
Slough Borough Council,805400,The Leading Care Company,685.72,M44C,Adult Social Care Operations,Supplies and Services,Feb-22
Slough Borough Council,805400,The Leading Care Company,584.69,M44C,Adult Social Care Operations,Supplies and Services,Feb-22
Slough Borough Council,805400,The Leading Care Company,"1,067.18",M44C,Adult Social Care Operations,Supplies and Services,Feb-22
Slough Borough Council,805400,The Leading Care Company,732.96,M44C,Adult Social Care Operations,Supplies and Services,Feb-22
Slough Borough Council,805400,The Leading Care Company,680.50,M44C,Adult Social Care Operations,Supplies and Services,Feb-22
Slough Borough Council,805400,The Leading Care Company,732.96,M44C,Adult Social Care Operations,Supplies and Services,Feb-22
Slough Borough Council,805400,The Leading Care Company,670.50,M44C,Adult Social Care Operations,Supplies and Services,Feb-22
